Workbook

Sheet guide
B2: Package: SVG Available functions:

Sheet calc
B2: TAB: READ SVG FILES DATA
B4: Parser | D4: Folder path | E4: C:\Users\konstantin.rybakov\Documents\_Never Backup\projects\java\jmc\jedt\xml\data\zijing | L4: recalculate | M4: 1 | P4: Scale Parameters Matching
B6: Calculator parameters | D6: Initial range parameters | I6: Adjusted range parameters
B8: # | C8: File name | D8: y: Lower bound | E8: y: Upper bound | F8: Δy | G8: svg: y-floor | H8: svg: height | I8: =D8 -> y: Lower bound | J8: =E8 -> y: Upper bound | K8: =F8 -> Δy | L8: Slope | M8: Intercept | O8: # | P8: File Name | Q8: Stats | R8: svg coords | S8: stats coords | T8: integer coords | U8: last coord
B9: 1 | C9: EJ883627 Corp.svg | D9: 2.710202995 | E9: 5.518885191 | F9: =E9-D9 -> 2.808682196 | G9: =_xll.AC.edit.svg.get($D$18, C9, config!$B$13) -> 0 | H9: =_xll.AC.edit.svg.get($D$18, C9, config!$B$12) -> 718 | I9: =M9 -> 2.710202995 | J9: =K9+I9 -> 5.518885191 | K9: =H9*L9 -> 2.808682196 | L9: =SLOPE(OFFSET($R$9:$R$10, 2*(B9-1), 0), OFFSET($T$9:$T$10, 2*(B9-1), 0)) -> 0.003911813644 | M9: =INTERCEPT(OFFSET($R$9:$R$10, 2*(B9-1), 0), OFFSET($T$9:$T$10, 2*(B9-1), 0)) -> 2.710202995 | O9: 1 | P9: =OFFSET($C$8, O9, 0) -> EJ883627 Corp.svg | Q9: min | R9: 2.941 | S9: =MIN(OFFSET(out!$D$10:$D$499, 0, 3*(O9-1))) -> 2.941 | T9: =(S9-OFFSET($D$9, O9-1, 0))*OFFSET($H$9, O9-1, 0)/OFFSET($F$9, O9-1, 0) -> 59 | U9: =OFFSET(out!$D$8, COUNT(OFFSET(out!$D$10:$D$1002, 0, 3*(O9-1))), 3*(O9-1)) -> 5.117924293
B10: =B9+1 -> 2 | C10: EJ883969 Corp.svg | D10: 2.571232945 | E10: 5.464737105 | F10: =E10-D10 -> 2.89350416 | G10: =_xll.AC.edit.svg.get($D$18, C10, config!$B$13) -> 0 | H10: =_xll.AC.edit.svg.get($D$18, C10, config!$B$12) -> 718 | I10: =M10 -> 2.571232945 | J10: =K10+I10 -> 5.464737105 | K10: =H10*L10 -> 2.89350416 | L10: =SLOPE(OFFSET($R$9:$R$10, 2*(B10-1), 0), OFFSET($T$9:$T$10, 2*(B10-1), 0)) -> 0.004029950083 | M10: =INTERCEPT(OFFSET($R$9:$R$10, 2*(B10-1), 0), OFFSET($T$9:$T$10, 2*(B10-1), 0)) -> 2.571232945 | Q10: max | R10: 5.292 | S10: =MAX(OFFSET(out!$D$10:$D$499, 0, 3*(O9-1))) -> 5.292 | T10: =(S10-OFFSET($D$9, O9-1, 0))*OFFSET($H$9, O9-1, 0)/OFFSET($F$9, O9-1, 0) -> 660
B11: =B10+1 -> 3 | C11: EK465214 Corp.svg | D11: 2.856402662 | E11: 5.273231281 | F11: =E11-D11 -> 2.416828619 | G11: =_xll.AC.edit.svg.get($D$18, C11, config!$B$13) -> 0 | H11: =_xll.AC.edit.svg.get($D$18, C11, config!$B$12) -> 718 | I11: =M11 -> 2.856402662 | J11: =K11+I11 -> 5.273231281 | K11: =H11*L11 -> 2.416828619 | L11: =SLOPE(OFFSET($R$9:$R$10, 2*(B11-1), 0), OFFSET($T$9:$T$10, 2*(B11-1), 0)) -> 0.003366056572 | M11: =INTERCEPT(OFFSET($R$9:$R$10, 2*(B11-1), 0), OFFSET($T$9:$T$10, 2*(B11-1), 0)) -> 2.856402662 | O11: =O9+1 -> 2 | P11: =OFFSET($C$8, O11, 0) -> EJ883969 Corp.svg | Q11: min | R11: 2.809 | S11: =MIN(OFFSET(out!$D$10:$D$499, 0, 3*(O11-1))) -> 2.809 | T11: =(S11-OFFSET($D$9, O11-1, 0))*OFFSET($H$9, O11-1, 0)/OFFSET($F$9, O11-1, 0) -> 59 | U11: =OFFSET(out!$D$8, COUNT(OFFSET(out!$D$10:$D$1002, 0, 3*(O11-1))), 3*(O11-1)) -> 5.083906822
B12: 4 | C12: EK465304 Corp.svg | D12: 2.644888519 | E12: 5.6399401 | F12: 2.995051581 | G12: =_xll.AC.edit.svg.get($D$18, C12, config!$B$13) -> 0 | H12: =_xll.AC.edit.svg.get($D$18, C12, config!$B$12) -> 718 | I12: 2.644888519 | J12: 5.6399401 | K12: 2.995051581 | L12: 0.004171381032 | M12: 2.644888519 | Q12: max | R12: 5.231 | S12: =MAX(OFFSET(out!$D$10:$D$499, 0, 3*(O11-1))) -> 5.231 | T12: =(S12-OFFSET($D$9, O11-1, 0))*OFFSET($H$9, O11-1, 0)/OFFSET($F$9, O11-1, 0) -> 660
B13: 5 | C13: JK485299 Corp.svg | D13: 2.838595674 | E13: 5.642499168 | F13: 2.803903494 | G13: =_xll.AC.edit.svg.get($D$18, C13, config!$B$13) -> 0 | H13: =_xll.AC.edit.svg.get($D$18, C13, config!$B$12) -> 718 | I13: 2.838595674 | J13: 5.642499168 | K13: 2.803903494 | L13: 0.00390515807 | M13: 2.838595674 | O13: =O11+1 -> 3 | P13: =OFFSET($C$8, O13, 0) -> EK465214 Corp.svg | Q13: min | R13: 3.055 | S13: =MIN(OFFSET(out!$D$10:$D$499, 0, 3*(O13-1))) -> 3.055 | T13: =(S13-OFFSET($D$9, O13-1, 0))*OFFSET($H$9, O13-1, 0)/OFFSET($F$9, O13-1, 0) -> 59 | U13: =OFFSET(out!$D$8, COUNT(OFFSET(out!$D$10:$D$1002, 0, 3*(O13-1))), 3*(O13-1)) -> 5.025826123
B14: 6 | C14: LW851028 Corp.svg | D14: 2.848951747 | E14: 5.624183028 | F14: 2.775231281 | G14: =_xll.AC.edit.svg.get($D$18, C14, config!$B$13) -> 0 | H14: =_xll.AC.edit.svg.get($D$18, C14, config!$B$12) -> 718 | I14: 2.848951747 | J14: 5.624183028 | K14: 2.775231281 | L14: 0.003865224626 | M14: 2.848951747 | Q14: max | R14: 5.078 | S14: =MAX(OFFSET(out!$D$10:$D$499, 0, 3*(O13-1))) -> 5.078 | T14: =(S14-OFFSET($D$9, O13-1, 0))*OFFSET($H$9, O13-1, 0)/OFFSET($F$9, O13-1, 0) -> 660
B15: 7 | C15: UV800537 Corp.svg | D15: 3.17621797 | E15: 5.668311148 | F15: 2.492093178 | G15: =_xll.AC.edit.svg.get($D$18, C15, config!$B$13) -> 0 | H15: =_xll.AC.edit.svg.get($D$18, C15, config!$B$12) -> 718 | I15: 3.17621797 | J15: 5.668311148 | K15: 2.492093178 | L15: 0.003470881864 | M15: 3.17621797 | O15: =O13+1 -> 4 | P15: =OFFSET($C$8, O15, 0) -> EK465304 Corp.svg | Q15: min | R15: 2.891 | S15: =MIN(OFFSET(out!$D$10:$D$499, 0, 3*(O15-1))) -> 2.891 | T15: =(S15-OFFSET($D$9, O15-1, 0))*OFFSET($H$9, O15-1, 0)/OFFSET($F$9, O15-1, 0) -> 59 | U15: =OFFSET(out!$D$8, COUNT(OFFSET(out!$D$10:$D$1002, 0, 3*(O15-1))), 3*(O15-1)) -> 5.370886023
B16: 8 | C16: UV800538 Corp.svg | D16: 2.852570715 | E16: 5.705455907 | F16: 2.852885191 | G16: =_xll.AC.edit.svg.get($D$18, C16, config!$B$13) -> 0 | H16: =_xll.AC.edit.svg.get($D$18, C16, config!$B$12) -> 718 | I16: 2.852570715 | J16: 5.705455907 | K16: 2.852885191 | L16: 0.003973377704 | M16: 2.852570715 | Q16: max | R16: 5.398 | S16: =MAX(OFFSET(out!$D$10:$D$499, 0, 3*(O15-1))) -> 5.398 | T16: =(S16-OFFSET($D$9, O15-1, 0))*OFFSET($H$9, O15-1, 0)/OFFSET($F$9, O15-1, 0) -> 660
O17: =O15+1 -> 5 | P17: =OFFSET($C$8, O17, 0) -> JK485299 Corp.svg | Q17: min | R17: 3.069 | S17: =MIN(OFFSET(out!$D$10:$D$499, 0, 3*(O17-1))) -> 3.069 | T17: =(S17-OFFSET($D$9, O17-1, 0))*OFFSET($H$9, O17-1, 0)/OFFSET($F$9, O17-1, 0) -> 59 | U17: =OFFSET(out!$D$8, COUNT(OFFSET(out!$D$10:$D$1002, 0, 3*(O17-1))), 3*(O17-1)) -> 5.404284526
C18: Calculator | D18: =_xll.AC.edit.svg.load(E4, C9:E16, M4) -> java.util.LinkedHashMap@Thu, 3 Jan 2019 15:06:02:971..7502610473594900591 | Q18: max | R18: 5.416 | S18: =MAX(OFFSET(out!$D$10:$D$499, 0, 3*(O17-1))) -> 5.416 | T18: =(S18-OFFSET($D$9, O17-1, 0))*OFFSET($H$9, O17-1, 0)/OFFSET($F$9, O17-1, 0) -> 660
O19: =O17+1 -> 6 | P19: =OFFSET($C$8, O19, 0) -> LW851028 Corp.svg | Q19: min | R19: 3.077 | S19: =MIN(OFFSET(out!$D$10:$D$499, 0, 3*(O19-1))) -> 3.077 | T19: =(S19-OFFSET($D$9, O19-1, 0))*OFFSET($H$9, O19-1, 0)/OFFSET($F$9, O19-1, 0) -> 59 | U19: =OFFSET(out!$D$8, COUNT(OFFSET(out!$D$10:$D$1002, 0, 3*(O19-1))), 3*(O19-1)) -> 5.351684692
Q20: max | R20: 5.4 | S20: =MAX(OFFSET(out!$D$10:$D$499, 0, 3*(O19-1))) -> 5.4 | T20: =(S20-OFFSET($D$9, O19-1, 0))*OFFSET($H$9, O19-1, 0)/OFFSET($F$9, O19-1, 0) -> 660
O21: =O19+1 -> 7 | P21: =OFFSET($C$8, O21, 0) -> UV800537 Corp.svg | Q21: min | R21: 3.381 | S21: =MIN(OFFSET(out!$D$10:$D$499, 0, 3*(O21-1))) -> 3.381 | T21: =(S21-OFFSET($D$9, O21-1, 0))*OFFSET($H$9, O21-1, 0)/OFFSET($F$9, O21-1, 0) -> 59 | U21: =OFFSET(out!$D$8, COUNT(OFFSET(out!$D$10:$D$1002, 0, 3*(O21-1))), 3*(O21-1)) -> 5.37328619
Q22: max | R22: 5.467 | S22: =MAX(OFFSET(out!$D$10:$D$499, 0, 3*(O21-1))) -> 5.467 | T22: =(S22-OFFSET($D$9, O21-1, 0))*OFFSET($H$9, O21-1, 0)/OFFSET($F$9, O21-1, 0) -> 660
O23: =O21+1 -> 8 | P23: =OFFSET($C$8, O23, 0) -> UV800538 Corp.svg | Q23: min | R23: 3.087 | S23: =MIN(OFFSET(out!$D$10:$D$499, 0, 3*(O23-1))) -> 3.087 | T23: =(S23-OFFSET($D$9, O23-1, 0))*OFFSET($H$9, O23-1, 0)/OFFSET($F$9, O23-1, 0) -> 59 | U23: =OFFSET(out!$D$8, COUNT(OFFSET(out!$D$10:$D$1002, 0, 3*(O23-1))), 3*(O23-1)) -> 5.425332779
Q24: max | R24: 5.475 | S24: =MAX(OFFSET(out!$D$10:$D$499, 0, 3*(O23-1))) -> 5.475 | T24: =(S24-OFFSET($D$9, O23-1, 0))*OFFSET($H$9, O23-1, 0)/OFFSET($F$9, O23-1, 0) -> 660

Sheet out
B2: TAB: SVG OUTPUT DATA | I2: =1611/3 -> 537
C4: =_xll.AC.edit.svg.get(calc!$D$18, C8, config!$B$11) -> java.util.ArrayList@Thu, 3 Jan 2019 15:06:02:975..5484995847859562020 | F4: =_xll.AC.edit.svg.get(calc!$D$18, F8, config!$B$11) -> java.util.ArrayList@Thu, 3 Jan 2019 15:06:02:975..5484995847859562020 | I4: =_xll.AC.edit.svg.get(calc!$D$18, I8, config!$B$11) -> java.util.ArrayList@Thu, 3 Jan 2019 15:06:02:975..5484995847859562020 | L4: =_xll.AC.edit.svg.get(calc!$D$18, L8, config!$B$11) -> java.util.ArrayList@Thu, 3 Jan 2019 15:06:02:975..5484995847859562020 | O4: =_xll.AC.edit.svg.get(calc!$D$18, O8, config!$B$11) -> java.util.ArrayList@Thu, 3 Jan 2019 15:06:03:006..1922098916738043392 | R4: =_xll.AC.edit.svg.get(calc!$D$18, R8, config!$B$11) -> java.util.ArrayList@Thu, 3 Jan 2019 15:06:03:016..6431852307350767153 | U4: =_xll.AC.edit.svg.get(calc!$D$18, U8, config!$B$11) -> java.util.ArrayList@Thu, 3 Jan 2019 15:06:02:975..5484995847859562020 | X4: =_xll.AC.edit.svg.get(calc!$D$18, X8, config!$B$11) -> java.util.ArrayList@Thu, 3 Jan 2019 15:06:02:975..5484995847859562020 | AB4: =COUNT(AB10:AB1000)-1 -> 499
C5: =_xll.AC.edit.svg.get(calc!$D$18, C8, config!$B$10) -> java.util.ArrayList@Thu, 3 Jan 2019 15:06:02:984..5340649178913219823 | F5: =_xll.AC.edit.svg.get(calc!$D$18, F8, config!$B$10) -> java.util.ArrayList@Thu, 3 Jan 2019 15:06:02:976..4892955579627633259 | J5: =_xll.AC.edit.svg.get(calc!$D$18, I8, config!$B$10) -> java.util.ArrayList@Thu, 3 Jan 2019 15:06:03:003..4754265028626175372 | M5: =_xll.AC.edit.svg.get(calc!$D$18, L8, config!$B$10) -> java.util.ArrayList@Thu, 3 Jan 2019 15:06:03:002..4537025147458255146 | P5: =_xll.AC.edit.svg.get(calc!$D$18, O8, config!$B$10) -> java.util.ArrayList@Thu, 3 Jan 2019 15:06:03:005..2467191562259324458 | S5: =_xll.AC.edit.svg.get(calc!$D$18, R8, config!$B$10) -> java.util.ArrayList@Thu, 3 Jan 2019 15:06:03:011..3331351049199390033 | V5: =_xll.AC.edit.svg.get(calc!$D$18, U8, config!$B$10) -> java.util.ArrayList@Thu, 3 Jan 2019 15:06:03:021..7829334303251076101 | Y5: =_xll.AC.edit.svg.get(calc!$D$18, X8, config!$B$10) -> java.util.ArrayList@Thu, 3 Jan 2019 15:06:03:019..3844085385012503729 | AB5: =B8 -> 488
C6: =_xll.AC.data.size(C5, 2) -> 488 | F6: =_xll.AC.data.size(F5, 2) -> 488 | I6: =_xll.AC.data.size(J5, 2) -> 488 | L6: =_xll.AC.data.size(M5, 2) -> 488 | O6: =_xll.AC.data.size(P5, 2) -> 439 | R6: =_xll.AC.data.size(S5, 2) -> 356 | U6: =_xll.AC.data.size(V5, 2) -> 488 | X6: =_xll.AC.data.size(Y5, 2) -> 488 | AB6: =B7 -> 1611
B7: =MAX(B10:B1000) -> 1611 | C7: 1 | E7: =MAX(E10:E1000) -> 1611 | F7: =C7+1 -> 2 | H7: =MAX(H10:H1000) -> 1611 | I7: =F7+1 -> 3 | K7: =MAX(K10:K1000) -> 1611 | L7: =I7+1 -> 4 | N7: =MAX(N10:N1000) -> 1611 | O7: =L7+1 -> 5 | Q7: =MAX(Q10:Q1000) -> 1611 | R7: =O7+1 -> 6 | T7: =MAX(T10:T1000) -> 1611 | U7: =R7+1 -> 7 | W7: =MAX(W10:W1000) -> 1611 | X7: =U7+1 -> 8
B8: =COUNT(B10:B1000) -> 488 | C8: =OFFSET(calc!$C$8, C7, 0) -> EJ883627 Corp.svg | E8: =COUNT(E10:E1000) -> 488 | F8: =OFFSET(calc!$C$8, F7, 0) -> EJ883969 Corp.svg | H8: =COUNT(H10:H1000) -> 488 | I8: =OFFSET(calc!$C$8, I7, 0) -> EK465214 Corp.svg | K8: =COUNT(K10:K1000) -> 488 | L8: =OFFSET(calc!$C$8, L7, 0) -> EK465304 Corp.svg | N8: =COUNT(N10:N1000) -> 439 | O8: =OFFSET(calc!$C$8, O7, 0) -> JK485299 Corp.svg | Q8: =COUNT(Q10:Q1000) -> 356 | R8: =OFFSET(calc!$C$8, R7, 0) -> LW851028 Corp.svg | T8: =COUNT(T10:T1000) -> 488 | U8: =OFFSET(calc!$C$8, U7, 0) -> UV800537 Corp.svg | W8: =COUNT(W10:W1000) -> 488 | X8: =OFFSET(calc!$C$8, X7, 0) -> UV800538 Corp.svg
B9: # | C9: Date | D9: Yield | E9: =B9 -> # | F9: =C9 -> Date | G9: =D9 -> Yield | H9: =E9 -> # | I9: Date | J9: Yield | K9: # | L9: Date | M9: Yield | N9: # | O9: Date | P9: Yield | Q9: # | R9: Date | S9: Yield | T9: # | U9: Date | V9: Yield | W9: # | X9: Date | Y9: Yield | AB9: Date
B10: =_xll.AC.data._get(C4, "", 0) -> 0 | C10: =IF(B10="", "", OFFSET($AB$10, $AB$4-($AB$5-B$8)-ROUND(B10*($AB$4-($AB$5-B$8))/$AB$6, 0), 0)) -> 2016-01-04 | D10: =_xll.AC.data._get(C5, "", 1) -> 3.547331115 | E10: =_xll.AC.data._get(F4, "", 0) -> 0 | F10: =IF(E10="", "", OFFSET($AB$10, $AB$4-($AB$5-E$8)-ROUND(E10*($AB$4-($AB$5-E$8))/$AB$6, 0), 0)) -> 2016-01-04 | G10: =_xll.AC.data._get(F5, "", 1) -> 3.566630616 | H10: =_xll.AC.data._get(I4, "", 0) -> 0 | I10: =IF(H10="", "", OFFSET($AB$10, $AB$4-($AB$5-H$8)-ROUND(H10*($AB$4-($AB$5-H$8))/$AB$6, 0), 0)) -> 2016-01-04 | J10: =_xll.AC.data._get(J5, "", 1) -> 3.657524126 | K10: =_xll.AC.data._get(L4, "", 0) -> 0 | L10: =IF(K10="", "", OFFSET($AB$10, $AB$4-($AB$5-K$8)-ROUND(K10*($AB$4-($AB$5-K$8))/$AB$6, 0), 0)) -> 2016-01-04 | M10: =_xll.AC.data._get(M5, "", 1) -> 3.573020799 | N10: =_xll.AC.data._get(O4, "", 0) -> 0 | O10: =IF(N10="", "", OFFSET($AB$10, $AB$4-($AB$5-N$8)-ROUND(N10*($AB$4-($AB$5-N$8))/$AB$6, 0), 0)) -> 2016-03-15 | P10: =_xll.AC.data._get(P5, "", 1) -> 3.61572213 | Q10: =_xll.AC.data._get(R4, "", 0) -> 0 | R10: =IF(Q10="", "", OFFSET($AB$10, $AB$4-($AB$5-Q$8)-ROUND(Q10*($AB$4-($AB$5-Q$8))/$AB$6, 0), 0)) -> 2016-07-13 | S10: =_xll.AC.data._get(S5, "", 1) -> 3.409409318 | T10: =_xll.AC.data._get(U4, "", 0) -> 0 | U10: =IF(T10="", "", OFFSET($AB$10, $AB$4-($AB$5-T$8)-ROUND(T10*($AB$4-($AB$5-T$8))/$AB$6, 0), 0)) -> 2016-01-04 | V10: =_xll.AC.data._get(V5, "", 1) -> 3.717675541 | W10: =_xll.AC.data._get(X4, "", 0) -> 0 | X10: =IF(W10="", "", OFFSET($AB$10, $AB$4-($AB$5-W$8)-ROUND(W10*($AB$4-($AB$5-W$8))/$AB$6, 0), 0)) -> 2016-01-04 | Y10: =_xll.AC.data._get(Y5, "", 1) -> 3.698900166 | AB10: 2017-12-29
B11: 3 | C11: =IF(B11="", "", OFFSET($AB$10, $AB$4-($AB$5-B$8)-ROUND(B11*($AB$4-($AB$5-B$8))/$AB$6, 0), 0)) -> 2016-01-05 | D11: 3.586449251 | E11: 3 | F11: =IF(E11="", "", OFFSET($AB$10, $AB$4-($AB$5-E$8)-ROUND(E11*($AB$4-($AB$5-E$8))/$AB$6, 0), 0)) -> 2016-01-05 | G11: 3.606930116 | H11: 3 | I11: =IF(H11="", "", OFFSET($AB$10, $AB$4-($AB$5-H$8)-ROUND(H11*($AB$4-($AB$5-H$8))/$AB$6, 0), 0)) -> 2016-01-05 | J11: 3.684452579 | K11: 3 | L11: =IF(K11="", "", OFFSET($AB$10, $AB$4-($AB$5-K$8)-ROUND(K11*($AB$4-($AB$5-K$8))/$AB$6, 0), 0)) -> 2016-01-05 | M11: 3.573020799 | N11: 4 | O11: =IF(N11="", "", OFFSET($AB$10, $AB$4-($AB$5-N$8)-ROUND(N11*($AB$4-($AB$5-N$8))/$AB$6, 0), 0)) -> 2016-03-16 | P11: 3.668441764 | Q11: 5 | R11: =IF(Q11="", "", OFFSET($AB$10, $AB$4-($AB$5-Q$8)-ROUND(Q11*($AB$4-($AB$5-Q$8))/$AB$6, 0), 0)) -> 2016-07-14 | S11: 3.43646589 | T11: 3 | U11: =IF(T11="", "", OFFSET($AB$10, $AB$4-($AB$5-T$8)-ROUND(T11*($AB$4-($AB$5-T$8))/$AB$6, 0), 0)) -> 2016-01-05 | V11: 3.745442596 | W11: 3 | X11: =IF(W11="", "", OFFSET($AB$10, $AB$4-($AB$5-W$8)-ROUND(W11*($AB$4-($AB$5-W$8))/$AB$6, 0), 0)) -> 2016-01-05 | Y11: 3.72671381 | AB11: 2017-12-28
B12: 7 | C12: 2016-01-06 | D12: 3.607964226 | E12: 7 | F12: 2016-01-06 | G12: 3.625064892 | H12: 7 | I12: 2016-01-06 | J12: 3.701282862 | K12: 7 | L12: 2016-01-06 | M12: 3.573020799 | N12: 7 | O12: 2016-03-17 | P12: 3.668441764 | Q12: 9 | R12: 2016-07-15 | S12: 3.424870216 | T12: 7 | U12: 2016-01-06 | V12: 3.759326123 | W12: 7 | X12: 2016-01-06 | Y12: 3.738633943 | AB12: 2017-12-27
B13: 10 | C13: 2016-01-07 | D13: 3.607964226 | E13: 10 | F13: 2016-01-07 | G13: 3.625064892 | H13: 10 | I13: 2016-01-07 | J13: 3.697916805 | K13: 10 | L13: 2016-01-07 | M13: 3.573020799 | N13: 11 | O13: 2016-03-18 | P13: 3.592291181 | Q13: 14 | R13: 2016-07-18 | S13: 3.401678869 | T13: 10 | U13: 2016-01-07 | V13: 3.748913478 | W13: 10 | X13: 2016-01-07 | Y13: 3.72671381 | AB13: 2017-12-26
B14: 13 | C14: 2016-01-08 | D14: 3.56884609 | E14: 13 | F14: 2016-01-08 | G14: 3.594840266 | H14: 13 | I14: 2016-01-08 | J14: 3.665939268 | K14: 13 | L14: 2016-01-08 | M14: 3.570935108 | N14: 15 | O14: 2016-03-21 | P14: 3.568860233 | Q14: 18 | R14: 2016-07-19 | S14: 3.397813644 | T14: 13 | U14: 2016-01-08 | V14: 3.719410982 | W14: 13 | X14: 2016-01-08 | Y14: 3.696913478 | AB14: 2017-12-22
B15: 17 | C15: 2016-01-11 | D15: 3.56884609 | E15: 17 | F15: 2016-01-11 | G15: 3.590810316 | H15: 17 | I15: 2016-01-11 | J15: 3.665939268 | K15: 17 | L15: 2016-01-11 | M15: 3.57927787 | N15: 18 | O15: 2016-03-22 | P15: 3.561049917 | Q15: 23 | R15: 2016-07-20 | S15: 3.390083195 | T15: 17 | U15: 2016-01-11 | V15: 3.719410982 | W15: 17 | X15: 2016-01-11 | Y15: 3.696913478 | AB15: 2017-12-21
B16: 20 | C16: 2016-01-12 | D16: 3.572757903 | E16: 20 | F16: 2016-01-12 | G16: 3.594840266 | H16: 20 | I16: 2016-01-12 | J16: 3.670988353 | K16: 20 | L16: 2016-01-12 | M16: 3.595963394 | N16: 22 | O16: 2016-03-23 | P16: 3.568860233 | Q16: 27 | R16: 2016-07-21 | S16: 3.38621797 | T16: 20 | U16: 2016-01-12 | V16: 3.724617304 | W16: 20 | X16: 2016-01-12 | Y16: 3.702873544 | AB16: 2017-12-20
B17: 23 | C17: 2016-01-13 | D17: 3.572757903 | E17: 23 | F17: 2016-01-13 | G17: 3.598870216 | H17: 23 | I17: 2016-01-13 | J17: 3.674354409 | K17: 23 | L17: 2016-01-13 | M17: 3.612648918 | N17: 26 | O17: 2016-03-24 | P17: 3.551287022 | Q17: 32 | R17: 2016-07-22 | S17: 3.382352745 | T17: 23 | U17: 2016-01-13 | V17: 3.728088186 | W17: 23 | X17: 2016-01-13 | Y17: 3.706846922 | AB17: 2017-12-19
B18: 26 | C18: 2016-01-14 | D18: 3.582537438 | E18: 26 | F18: 2016-01-14 | G18: 3.602900166 | H18: 26 | I18: 2016-01-14 | J18: 3.677720466 | K18: 26 | L18: 2016-01-14 | M18: 3.629334443 | N18: 29 | O18: 2016-03-28 | P18: 3.551287022 | Q18: 36 | R18: 2016-07-25 | S18: 3.374622296 | T18: 26 | U18: 2016-01-14 | V18: 3.73502995 | W18: 26 | X18: 2016-01-14 | Y18: 3.714793677 | AB18: 2017-12-18
B19: 30 | C19: 2016-01-15 | D19: 3.586449251 | E19: 30 | F19: 2016-01-15 | G19: 3.606930116 | H19: 30 | I19: 2016-01-15 | J19: 3.681086522 | K19: 30 | L19: 2016-01-15 | M19: 3.620991681 | N19: 33 | O19: 2016-03-29 | P19: 3.549334443 | Q19: 41 | R19: 2016-07-26 | S19: 3.366891847 | T19: 30 | U19: 2016-01-15 | V19: 3.738500832 | W19: 30 | X19: 2016-01-15 | Y19: 3.718767055 | AB19: 2017-12-15
B20: 33 | C20: 2016-01-19 | D20: 3.598184692 | E20: 33 | F20: 2016-01-19 | G20: 3.619019967 | H20: 33 | I20: 2016-01-19 | J20: 3.691184692 | K20: 33 | L20: 2016-01-19 | M20: 3.604306156 | N20: 37 | O20: 2016-03-30 | P20: 3.604006656 | Q20: 45 | R20: 2016-07-27 | S20: 3.355296173 | T20: 33 | U20: 2016-01-19 | V20: 3.745442596 | W20: 33 | X20: 2016-01-19 | Y20: 3.722740433 | AB20: 2017-12-14
B21: 36 | C21: 2016-01-20 | D21: 3.633391015 | E21: 36 | F21: 2016-01-20 | G21: 3.651259567 | H21: 36 | I21: 2016-01-20 | J21: 3.711381032 | K21: 36 | L21: 2016-01-20 | M21: 3.600134775 | N21: 40 | O21: 2016-03-31 | P21: 3.619627288 | Q21: 50 | R21: 2016-07-28 | S21: 3.359161398 | T21: 36 | U21: 2016-01-20 | V21: 3.769738769 | W21: 36 | X21: 2016-01-20 | Y21: 3.750554077 | AB21: 2017-12-13
B22: 40 | C22: 2016-01-21 | D22: 3.676420965 | E22: 40 | F22: 2016-01-21 | G22: 3.695589018 | H22: 40 | I22: 2016-01-21 | J22: 3.755139767 | K22: 40 | L22: 2016-01-21 | M22: 3.612648918 | N22: 44 | O22: 2016-04-01 | P22: 3.627437604 | Q22: 54 | R22: 2016-07-29 | S22: 3.366891847 | T22: 40 | U22: 2016-01-21 | V22: 3.800976705 | W22: 40 | X22: 2016-01-21 | Y22: 3.77836772 | AB22: 2017-12-12
B23: 43 | C23: 2016-01-22 | D23: 3.703803661 | E23: 43 | F23: 2016-01-22 | G23: 3.723798669 | H23: 43 | I23: 2016-01-22 | J23: 3.775336106 | K23: 43 | L23: 2016-01-22 | M23: 3.608477537 | N23: 48 | O23: 2016-04-04 | P23: 3.65477371 | Q23: 59 | R23: 2016-08-01 | S23: 3.359161398 | T23: 43 | U23: 2016-01-22 | V23: 3.807918469 | W23: 43 | X23: 2016-01-22 | Y23: 3.786314476 | AB23: 2017-12-11
B24: 46 | C24: 2016-01-25 | D24: 3.680332779 | E24: 46 | F24: 2016-01-25 | G24: 3.699618968 | H24: 46 | I24: 2016-01-25 | J24: 3.741675541 | K24: 46 | L24: 2016-01-25 | M24: 3.562592346 | N24: 51 | O24: 2016-04-05 | P24: 3.63524792 | Q24: 64 | R24: 2016-08-03 | S24: 3.347565724 | T24: 46 | U24: 2016-01-25 | V24: 3.769738769 | W24: 46 | X24: 2016-01-25 | Y24: 3.750554077 | AB24: 2017-12-08
B25: 50 | C25: 2016-01-26 | D25: 3.664685524 | E25: 50 | F25: 2016-01-26 | G25: 3.687529118 | H25: 50 | I25: 2016-01-26 | J25: 3.724845258 | K25: 50 | L25: 2016-01-26 | M25: 3.541735441 | N25: 55 | O25: 2016-04-06 | P25: 3.686014975 | Q25: 68 | R25: 2016-08-03 | S25: 3.316643927 | T25: 50 | U25: 2016-01-26 | V25: 3.743707155 | W25: 50 | X25: 2016-01-26 | Y25: 3.720753744 | AB25: 2017-12-07
B26: 53 | C26: 2016-01-27 | D26: 3.66077371 | E26: 53 | F26: 2016-01-27 | G26: 3.683499168 | H26: 53 | I26: 2016-01-27 | J26: 3.731577371 | K26: 53 | L26: 2016-01-27 | M26: 3.545906822 | N26: 59 | O26: 2016-04-07 | P26: 3.701635607 | Q26: 73 | R26: 2016-08-05 | S26: 3.312778702 | T26: 53 | U26: 2016-01-27 | V26: 3.743707155 | W26: 53 | X26: 2016-01-27 | Y26: 3.720753744 | AB26: 2017-12-06
B27: 56 | C27: 2016-01-28 | D27: 3.723362729 | E27: 56 | F27: 2016-01-28 | G27: 3.743948419 | H27: 56 | I27: 2016-01-28 | J27: 3.798898502 | K27: 56 | L27: 2016-01-28 | M27: 3.612648918 | N27: 63 | O27: 2016-04-11 | P27: 3.748497504 | Q27: 77 | R27: 2016-08-08 | S27: 3.320509151 | T27: 56 | U27: 2016-01-28 | V27: 3.82874376 | W27: 56 | X27: 2016-01-28 | Y27: 3.806181364 | AB27: 2017-12-05
B28: 60 | C28: 2016-02-01 | D28: 3.733142263 | E28: 60 | F28: 2016-02-01 | G28: 3.754023295 | H28: 60 | I28: 2016-02-01 | J28: 3.815728785 | K28: 60 | L28: 2016-02-01 | M28: 3.629334443 | N28: 66 | O28: 2016-04-11 | P28: 3.764118136 | Q28: 82 | R28: 2016-08-09 | S28: 3.363026622 | T28: 60 | U28: 2016-02-01 | V28: 3.84609817 | W28: 60 | X28: 2016-02-01 | Y28: 3.822074875 | AB28: 2017-12-04
B29: 63 | C29: 2016-02-02 | D29: 3.733142263 | E29: 63 | F29: 2016-02-02 | G29: 3.754023295 | H29: 63 | I29: 2016-02-02 | J29: 3.808996672 | K29: 63 | L29: 2016-02-02 | M29: 3.625163062 | N29: 70 | O29: 2016-04-13 | P29: 3.744592346 | Q29: 86 | R29: 2016-08-10 | S29: 3.277991681 | T29: 63 | U29: 2016-02-02 | V29: 3.835685524 | W29: 63 | X29: 2016-02-02 | Y29: 3.81412812 | AB29: 2017-12-01
B30: 66 | C30: 2016-02-02 | D30: 3.723362729 | E30: 66 | F30: 2016-02-02 | G30: 3.743948419 | H30: 66 | I30: 2016-02-02 | J30: 3.815728785 | K30: 66 | L30: 2016-02-02 | M30: 3.633505824 | N30: 74 | O30: 2016-04-14 | P30: 3.670394343 | Q30: 91 | R30: 2016-08-11 | S30: 3.312778702 | T30: 66 | U30: 2016-02-02 | V30: 3.849569052 | W30: 66 | X30: 2016-02-02 | Y30: 3.830021631 | AB30: 2017-11-30
B31: 69 | C31: 2016-02-03 | D31: 3.750745424 | E31: 69 | F31: 2016-02-03 | G31: 3.77215807 | H31: 69 | I31: 2016-02-03 | J31: 3.839291181 | K31: 69 | L31: 2016-02-03 | M31: 3.65853411 | N31: 77 | O31: 2016-04-15 | P31: 3.631342762 | Q31: 95 | R31: 2016-08-12 | S31: 3.328239601 | T31: 69 | U31: 2016-02-03 | V31: 3.886013311 | W31: 69 | X31: 2016-02-03 | Y31: 3.863795341 | AB31: 2017-11-29
B32: 73 | C32: 2016-02-05 | D32: 3.762480865 | E32: 73 | F32: 2016-02-05 | G32: 3.78424792 | H32: 73 | I32: 2016-02-05 | J32: 3.846023295 | K32: 73 | L32: 2016-02-05 | M32: 3.662705491 | N32: 81 | O32: 2016-04-18 | P32: 3.619627288 | Q32: 100 | R32: 2016-08-15 | S32: 3.413274542 | T32: 73 | U32: 2016-02-05 | V32: 3.886013311 | W32: 73 | X32: 2016-02-05 | Y32: 3.863795341 | AB32: 2017-11-28
B33: 76 | C33: 2016-02-08 | D33: 3.739009983 | E33: 76 | F33: 2016-02-08 | G33: 3.76006822 | H33: 76 | I33: 2016-02-08 | J33: 3.825826955 | K33: 76 | L33: 2016-02-08 | M33: 3.646019967 | N33: 85 | O33: 2016-04-19 | P33: 3.705540765 | Q33: 104 | R33: 2016-08-16 | S33: 3.428735441 | T33: 76 | U33: 2016-02-08 | V33: 3.863452579 | W33: 76 | X33: 2016-02-08 | Y33: 3.841941764 | AB33: 2017-11-27
B34: 79 | C34: 2016-02-08 | D34: 3.727274542 | E34: 79 | F34: 2016-02-08 | G34: 3.747978369 | H34: 79 | I34: 2016-02-08 | J34: 3.808996672 | K34: 79 | L34: 2016-02-08 | M34: 3.629334443 | N34: 88 | O34: 2016-04-20 | P34: 3.768023295 | Q34: 109 | R34: 2016-08-17 | S34: 3.424870216 | T34: 79 | U34: 2016-02-08 | V34: 3.84609817 | W34: 79 | X34: 2016-02-08 | Y34: 3.822074875 | AB34: 2017-11-24
B35: 83 | C35: 2016-02-10 | D35: 3.64903827 | E35: 83 | F35: 2016-02-10 | G35: 3.667379368 | H35: 83 | I35: 2016-02-10 | J35: 3.76187188 | K35: 83 | L35: 2016-02-10 | M35: 3.583449251 | N35: 92 | O35: 2016-04-21 | P35: 3.799264559 | Q35: 113 | R35: 2016-08-18 | S35: 3.432600666 | T35: 83 | U35: 2016-02-10 | V35: 3.811389351 | W35: 83 | X35: 2016-02-10 | Y35: 3.790287854 | AB35: 2017-11-22
B36: 86 | C36: 2016-02-11 | D36: 3.66077371 | E36: 86 | F36: 2016-02-11 | G36: 3.679469218 | H36: 86 | I36: 2016-02-11 | J36: 3.77197005 | K36: 86 | L36: 2016-02-11 | M36: 3.595963394 | N36: 96 | O36: 2016-04-22 | P36: 3.775833611 | Q36: 118 | R36: 2016-08-19 | S36: 3.440331115 | T36: 86 | U36: 2016-02-11 | V36: 3.821801997 | W36: 86 | X36: 2016-02-11 | Y36: 3.798234609 | AB36: 2017-11-21
B37: 89 | C37: 2016-02-12 | D37: 3.69206822 | E37: 89 | F37: 2016-02-12 | G37: 3.711708819 | H37: 89 | I37: 2016-02-12 | J37: 3.792166389 | K37: 89 | L37: 2016-02-12 | M37: 3.612648918 | N37: 99 | O37: 2016-04-25 | P37: 3.807074875 | Q37: 123 | R37: 2016-08-22 | S37: 3.442263727 | T37: 89 | U37: 2016-02-12 | V37: 3.835685524 | W37: 89 | X37: 2016-02-12 | Y37: 3.81412812 | AB37: 2017-11-20
B38: 93 | C38: 2016-02-16 | D38: 3.715539101 | E38: 93 | F38: 2016-02-16 | G38: 3.735888519 | H38: 93 | I38: 2016-02-16 | J38: 3.819094842 | K38: 93 | L38: 2016-02-16 | M38: 3.641848586 | N38: 103 | O38: 2016-04-26 | P38: 3.814885191 | Q38: 127 | R38: 2016-08-23 | S38: 3.442263727 | T38: 93 | U38: 2016-02-16 | V38: 3.870394343 | W38: 93 | X38: 2016-02-16 | Y38: 3.849888519 | AB38: 2017-11-17
B39: 96 | C39: 2016-02-17 | D39: 3.69206822 | E39: 96 | F39: 2016-02-17 | G39: 3.711708819 | H39: 96 | I39: 2016-02-17 | J39: 3.812362729 | K39: 96 | L39: 2016-02-17 | M39: 3.633505824 | N39: 107 | O39: 2016-04-27 | P39: 3.830505824 | Q39: 132 | R39: 2016-08-24 | S39: 3.442263727 | T39: 96 | U39: 2016-02-17 | V39: 3.877336106 | W39: 96 | X39: 2016-02-17 | Y39: 3.853861897 | AB39: 2017-11-16
B40: 99 | C40: 2016-02-18 | D40: 3.668597338 | E40: 99 | F40: 2016-02-18 | G40: 3.687529118 | H40: 99 | I40: 2016-02-18 | J40: 3.790483361 | K40: 99 | L40: 2016-02-18 | M40: 3.6168203 | N40: 110 | O40: 2016-04-28 | P40: 3.760212978 | Q40: 136 | R40: 2016-08-25 | S40: 3.440331115 | T40: 99 | U40: 2016-02-18 | V40: 3.866923461 | W40: 99 | X40: 2016-02-18 | Y40: 3.845915141 | AB40: 2017-11-15
B41: 103 | C41: 2016-02-19 | D41: 3.656861897 | E41: 103 | F41: 2016-02-19 | G41: 3.679469218 | H41: 103 | I41: 2016-02-19 | J41: 3.790483361 | K41: 103 | L41: 2016-02-19 | M41: 3.612648918 | N41: 114 | O41: 2016-04-29 | P41: 3.779738769 | Q41: 141 | R41: 2016-08-26 | S41: 3.430668053 | T41: 103 | U41: 2016-02-19 | V41: 3.880806988 | W41: 103 | X41: 2016-02-19 | Y41: 3.857835275 | AB41: 2017-11-14
B42: 106 | C42: 2016-02-22 | D42: 3.645126456 | E42: 106 | F42: 2016-02-22 | G42: 3.663349418 | H42: 106 | I42: 2016-02-22 | J42: 3.778702163 | K42: 106 | L42: 2016-02-22 | M42: 3.604306156 | N42: 118 | O42: 2016-05-02 | P42: 3.789501664 | Q42: 145 | R42: 2016-08-29 | S42: 3.430668053 | T42: 106 | U42: 2016-02-22 | V42: 3.868658902 | W42: 106 | X42: 2016-02-22 | Y42: 3.84790183 | AB42: 2017-11-13
B43: 109 | C43: 2016-02-23 | D43: 3.633391015 | E43: 109 | F43: 2016-02-23 | G43: 3.655289517 | H43: 109 | I43: 2016-02-23 | J43: 3.77197005 | K43: 109 | L43: 2016-02-23 | M43: 3.595963394 | N43: 121 | O43: 2016-05-03 | P43: 3.789501664 | Q43: 150 | R43: 2016-08-30 | S43: 3.434533278 | T43: 109 | U43: 2016-02-23 | V43: 3.868658902 | W43: 109 | X43: 2016-02-23 | Y43: 3.84790183 | AB43: 2017-11-10
B44: 112 | C44: 2016-02-24 | D44: 3.621655574 | E44: 112 | F44: 2016-02-24 | G44: 3.643199667 | H44: 112 | I44: 2016-02-24 | J44: 3.755139767 | K44: 112 | L44: 2016-02-24 | M44: 3.57927787 | N44: 125 | O44: 2016-05-04 | P44: 3.766070715 | Q44: 154 | R44: 2016-08-31 | S44: 3.434533278 | T44: 112 | U44: 2016-02-24 | V44: 3.853039933 | W44: 112 | X44: 2016-02-24 | Y44: 3.830021631 | AB44: 2017-11-09
B45: 116 | C45: 2016-02-25 | D45: 3.613831947 | E45: 116 | F45: 2016-02-25 | G45: 3.635139767 | H45: 116 | I45: 2016-02-25 | J45: 3.75177371 | K45: 116 | L45: 2016-02-25 | M45: 3.575106489 | N45: 129 | O45: 2016-05-05 | P45: 3.766070715 | Q45: 159 | R45: 2016-09-01 | S45: 3.434533278 | T45: 116 | U45: 2016-02-25 | V45: 3.84609817 | W45: 116 | X45: 2016-02-25 | Y45: 3.826048253 | AB45: 2017-11-08
B46: 119 | C46: 2016-02-26 | D46: 3.61774376 | E46: 119 | F46: 2016-02-26 | G46: 3.639169717 | H46: 119 | I46: 2016-02-26 | J46: 3.758505824 | K46: 119 | L46: 2016-02-26 | M46: 3.583449251 | N46: 132 | O46: 2016-05-06 | P46: 3.766070715 | Q46: 163 | R46: 2016-09-02 | S46: 3.428735441 | T46: 119 | U46: 2016-02-26 | V46: 3.870394343 | W46: 119 | X46: 2016-02-26 | Y46: 3.849888519 | AB46: 2017-11-07
B47: 122 | C47: 2016-02-29 | D47: 3.652950083 | E47: 122 | F47: 2016-02-29 | G47: 3.671409318 | H47: 122 | I47: 2016-02-29 | J47: 3.795532446 | K47: 122 | L47: 2016-02-29 | M47: 3.620991681 | N47: 136 | O47: 2016-05-09 | P47: 3.748497504 | Q47: 168 | R47: 2016-09-06 | S47: 3.417139767 | T47: 122 | U47: 2016-02-29 | V47: 3.905103161 | W47: 122 | X47: 2016-02-29 | Y47: 3.885648918 | AB47: 2017-11-06
B48: 126 | C48: 2016-03-01 | D48: 3.633391015 | E48: 126 | F48: 2016-03-01 | G48: 3.655289517 | H48: 126 | I48: 2016-03-01 | J48: 3.78206822 | K48: 126 | L48: 2016-03-01 | M48: 3.608477537 | N48: 140 | O48: 2016-05-10 | P48: 3.818790349 | Q48: 172 | R48: 2016-09-07 | S48: 3.442263727 | T48: 126 | U48: 2016-03-01 | V48: 3.894690516 | W48: 126 | X48: 2016-03-01 | Y48: 3.869755408 | AB48: 2017-11-03
B49: 129 | C49: 2016-03-02 | D49: 3.602096506 | E49: 129 | F49: 2016-03-02 | G49: 3.623049917 | H49: 129 | I49: 2016-03-02 | J49: 3.748407654 | K49: 129 | L49: 2016-03-02 | M49: 3.575106489 | N49: 143 | O49: 2016-05-11 | P49: 3.822695507 | Q49: 177 | R49: 2016-09-08 | S49: 3.442263727 | T49: 129 | U49: 2016-03-02 | V49: 3.859981697 | W49: 129 | X49: 2016-03-02 | Y49: 3.837968386 | AB49: 2017-11-02
B50: 132 | C50: 2016-03-03 | D50: 3.453447587 | E50: 132 | F50: 2016-03-03 | G50: 3.473941764 | H50: 132 | I50: 2016-03-03 | J50: 3.593569052 | K50: 132 | L50: 2016-03-03 | M50: 3.637677205 | N50: 147 | O50: 2016-05-12 | P50: 3.83831614 | Q50: 182 | R50: 2016-09-09 | S50: 3.448061564 | T50: 132 | U50: 2016-03-03 | V50: 3.681231281 | W50: 132 | X50: 2016-03-03 | Y50: 3.534004992 | AB50: 2017-11-01
B51: 136 | C51: 2016-03-04 | D51: 3.437800333 | E51: 136 | F51: 2016-03-04 | G51: 3.457821963 | H51: 136 | I51: 2016-03-04 | J51: 3.580104825 | K51: 136 | L51: 2016-03-04 | M51: 3.620991681 | N51: 151 | O51: 2016-05-13 | P51: 3.853936772 | Q51: 186 | R51: 2016-09-12 | S51: 3.366891847 | T51: 136 | U51: 2016-03-04 | V51: 3.681231281 | W51: 136 | X51: 2016-03-04 | Y51: 3.534004992 | AB51: 2017-10-31
B52: 139 | C52: 2016-03-07 | D52: 3.433888519 | E52: 139 | F52: 2016-03-07 | G52: 3.453792013 | H52: 139 | I52: 2016-03-07 | J52: 3.57505574 | K52: 139 | L52: 2016-03-07 | M52: 3.6168203 | N52: 154 | O52: 2016-05-16 | P52: 3.865652246 | Q52: 191 | R52: 2016-09-14 | S52: 3.347565724 | T52: 139 | U52: 2016-03-07 | V52: 3.67949584 | W52: 139 | X52: 2016-03-07 | Y52: 3.534004992 | AB52: 2017-10-30
B53: 142 | C53: 2016-03-08 | D53: 3.429976705 | E53: 142 | F53: 2016-03-08 | G53: 3.449762063 | H53: 142 | I53: 2016-03-08 | J53: 3.57505574 | K53: 142 | L53: 2016-03-08 | M53: 3.610563228 | N53: 158 | O53: 2016-05-17 | P53: 3.853936772 | Q53: 195 | R53: 2016-09-14 | S53: 3.320509151 | T53: 142 | U53: 2016-03-08 | V53: 3.676024958 | W53: 142 | X53: 2016-03-08 | Y53: 3.534004992 | AB53: 2017-10-27
B54: 146 | C54: 2016-03-09 | D54: 3.426064892 | E54: 146 | F54: 2016-03-09 | G54: 3.445732113 | H54: 146 | I54: 2016-03-09 | J54: 3.571689684 | K54: 146 | L54: 2016-03-09 | M54: 3.610563228 | N54: 162 | O54: 2016-05-18 | P54: 3.83831614 | Q54: 200 | R54: 2016-09-16 | S54: 3.312778702 | T54: 146 | U54: 2016-03-09 | V54: 3.670818636 | W54: 146 | X54: 2016-03-09 | Y54: 3.534004992 | AB54: 2017-10-26
B55: 149 | C55: 2016-03-10 | D55: 3.422153078 | E55: 149 | F55: 2016-03-10 | G55: 3.441702163 | H55: 149 | I55: 2016-03-10 | J55: 3.571689684 | K55: 149 | L55: 2016-03-10 | M55: 3.610563228 | N55: 166 | O55: 2016-05-19 | P55: 3.805122296 | Q55: 204 | R55: 2016-09-16 | S55: 3.308913478 | T55: 149 | U55: 2016-03-10 | V55: 3.670818636 | W55: 149 | X55: 2016-03-10 | Y55: 3.534004992 | AB55: 2017-10-25
B56: 152 | C56: 2016-03-11 | D56: 3.404549917 | E56: 152 | F56: 2016-03-11 | G56: 3.429612313 | H56: 152 | I56: 2016-03-11 | J56: 3.563274542 | K56: 152 | L56: 2016-03-11 | M56: 3.604306156 | N56: 169 | O56: 2016-05-20 | P56: 3.805122296 | Q56: 209 | R56: 2016-09-20 | S56: 3.258665557 | T56: 152 | U56: 2016-03-11 | V56: 3.670818636 | W56: 152 | X56: 2016-03-11 | Y56: 3.534004992 | AB56: 2017-10-24
B57: 155 | C57: 2016-03-14 | D57: 3.404549917 | E57: 155 | F57: 2016-03-14 | G57: 3.425582363 | H57: 155 | I57: 2016-03-14 | J57: 3.559908486 | K57: 155 | L57: 2016-03-14 | M57: 3.595963394 | N57: 173 | O57: 2016-05-23 | P57: 3.787549085 | Q57: 213 | R57: 2016-09-21 | S57: 3.247069884 | T57: 155 | U57: 2016-03-14 | V57: 3.667347754 | W57: 155 | X57: 2016-03-14 | Y57: 3.537978369 | AB57: 2017-10-23
B58: 159 | C58: 2016-03-15 | D58: 3.429976705 | E58: 159 | F58: 2016-03-15 | G58: 3.449762063 | H58: 159 | I58: 2016-03-15 | J58: 3.573372712 | K58: 159 | L58: 2016-03-15 | M58: 3.612648918 | N58: 177 | O58: 2016-05-24 | P58: 3.803169717 | Q58: 218 | R58: 2016-09-22 | S58: 3.233541597 | T58: 159 | U58: 2016-03-15 | V58: 3.667347754 | W58: 159 | X58: 2016-03-15 | Y58: 3.537978369 | AB58: 2017-10-20
B59: 162 | C59: 2016-03-16 | D59: 3.35956406 | E59: 162 | F59: 2016-03-16 | G59: 3.381252912 | H59: 162 | I59: 2016-03-16 | J59: 3.495953411 | K59: 162 | L59: 2016-03-16 | M59: 3.343594842 | N59: 180 | O59: 2016-05-25 | P59: 3.826600666 | Q59: 222 | R59: 2016-09-23 | S59: 3.233541597 | T59: 162 | U59: 2016-03-16 | V59: 3.589252912 | W59: 162 | X59: 2016-03-16 | Y59: 3.452550749 | AB59: 2017-10-19
B60: 165 | C60: 2016-03-17 | D60: 3.345872712 | E60: 165 | F60: 2016-03-17 | G60: 3.367148087 | H60: 165 | I60: 2016-03-17 | J60: 3.485855241 | K60: 165 | L60: 2016-03-17 | M60: 3.343594842 | N60: 184 | O60: 2016-05-26 | P60: 3.818790349 | Q60: 227 | R60: 2016-09-26 | S60: 3.243204659 | T60: 165 | U60: 2016-03-17 | V60: 3.578840266 | W60: 165 | X60: 2016-03-17 | Y60: 3.472417637 | AB60: 2017-10-18
B61: 169 | C61: 2016-03-18 | D61: 3.345872712 | E61: 169 | F61: 2016-03-18 | G61: 3.367148087 | H61: 169 | I61: 2016-03-18 | J61: 3.475757072 | K61: 169 | L61: 2016-03-18 | M61: 3.341509151 | N61: 188 | O61: 2016-05-31 | P61: 3.810980033 | Q61: 231 | R61: 2016-09-27 | S61: 3.223878536 | T61: 169 | U61: 2016-03-18 | V61: 3.571898502 | W61: 169 | X61: 2016-03-18 | Y61: 3.460497504 | AB61: 2017-10-17
B62: 172 | C62: 2016-03-21 | D62: 3.32240183 | E62: 172 | F62: 2016-03-21 | G62: 3.342968386 | H62: 172 | I62: 2016-03-21 | J62: 3.462292845 | K62: 172 | L62: 2016-03-21 | M62: 3.326909318 | N62: 191 | O62: 2016-05-31 | P62: 3.822695507 | Q62: 236 | R62: 2016-09-28 | S62: 3.200687188 | T62: 172 | U62: 2016-03-21 | V62: 3.558014975 | W62: 172 | X62: 2016-03-21 | Y62: 3.464470882 | AB62: 2017-10-16
B63: 175 | C63: 2016-03-22 | D63: 3.32240183 | E63: 175 | F63: 2016-03-22 | G63: 3.342968386 | H63: 175 | I63: 2016-03-22 | J63: 3.458926789 | K63: 175 | L63: 2016-03-22 | M63: 3.326909318 | N63: 195 | O63: 2016-06-01 | P63: 3.486851913 | Q63: 241 | R63: 2016-09-29 | S63: 3.111787022 | T63: 175 | U63: 2016-03-22 | V63: 3.551073211 | W63: 175 | X63: 2016-03-22 | Y63: 3.460497504 | AB63: 2017-10-13
B64: 179 | C64: 2016-03-23 | D64: 3.32240183 | E64: 179 | F64: 2016-03-23 | G64: 3.342968386 | H64: 179 | I64: 2016-03-23 | J64: 3.455560732 | K64: 179 | L64: 2016-03-23 | M64: 3.324823627 | N64: 199 | O64: 2016-06-03 | P64: 3.424369384 | Q64: 245 | R64: 2016-09-30 | S64: 3.12724792 | T64: 179 | U64: 2016-03-23 | V64: 3.542396007 | W64: 179 | X64: 2016-03-23 | Y64: 3.46844426 | AB64: 2017-10-12
B65: 182 | C65: 2016-03-24 | D65: 3.304798669 | E65: 182 | F65: 2016-03-24 | G65: 3.324833611 | H65: 182 | I65: 2016-03-24 | J65: 3.445462562 | K65: 182 | L65: 2016-03-24 | M65: 3.318566556 | N65: 202 | O65: 2016-06-03 | P65: 3.518093178 | Q65: 250 | R65: 2016-10-03 | S65: 3.220013311 | T65: 182 | U65: 2016-03-24 | V65: 3.542396007 | W65: 182 | X65: 2016-03-24 | Y65: 3.476391015 | AB65: 2017-10-11
B66: 185 | C66: 2016-03-28 | D66: 3.293063228 | E66: 185 | F66: 2016-03-28 | G66: 3.31274376 | H66: 185 | I66: 2016-03-28 | J66: 3.431998336 | K66: 185 | L66: 2016-03-28 | M66: 3.318566556 | N66: 206 | O66: 2016-06-07 | P66: 3.53371381 | Q66: 254 | R66: 2016-10-04 | S66: 3.088595674 | T66: 185 | U66: 2016-03-28 | V66: 3.528512479 | W66: 185 | X66: 2016-03-28 | Y66: 3.464470882 | AB66: 2017-10-10
B67: 189 | C67: 2016-03-30 | D67: 3.289151414 | E67: 189 | F67: 2016-03-30 | G67: 3.30871381 | H67: 189 | I67: 2016-03-30 | J67: 3.42863228 | K67: 189 | L67: 2016-03-30 | M67: 3.318566556 | N67: 210 | O67: 2016-06-08 | P67: 3.545429285 | Q67: 259 | R67: 2016-10-05 | S67: 3.096326123 | T67: 189 | U67: 2016-03-30 | V67: 3.528512479 | W67: 189 | X67: 2016-03-30 | Y67: 3.46844426 | AB67: 2017-10-06
B68: 192 | C68: 2016-03-30 | D68: 3.281327787 | E68: 192 | F68: 2016-03-30 | G68: 3.30065391 | H68: 192 | I68: 2016-03-30 | J68: 3.421900166 | K68: 192 | L68: 2016-03-30 | M68: 3.318566556 | N68: 213 | O68: 2016-06-08 | P68: 3.557144759 | Q68: 263 | R68: 2016-10-06 | S68: 3.100191348 | T68: 192 | U68: 2016-03-30 | V68: 3.523306156 | W68: 192 | X68: 2016-03-30 | Y68: 3.472417637 | AB68: 2017-10-05
B69: 195 | C69: 2016-03-31 | D69: 3.308710483 | E69: 195 | F69: 2016-03-31 | G69: 3.328863561 | H69: 195 | I69: 2016-03-31 | J69: 3.455560732 | K69: 195 | L69: 2016-03-31 | M69: 3.324823627 | N69: 217 | O69: 2016-06-10 | P69: 3.576670549 | Q69: 268 | R69: 2016-10-07 | S69: 3.077 | T69: 195 | U69: 2016-03-31 | V69: 3.575369384 | W69: 195 | X69: 2016-03-31 | Y69: 3.476391015 | AB69: 2017-10-04
B70: 198 | C70: 2016-04-01 | D70: 3.320445923 | E70: 198 | F70: 2016-04-01 | G70: 3.340953411 | H70: 198 | I70: 2016-04-01 | J70: 3.469024958 | K70: 198 | L70: 2016-04-01 | M70: 3.454136439 | N70: 221 | O70: 2016-06-13 | P70: 3.502472546 | Q70: 272 | R70: 2016-10-11 | S70: 3.150439268 | T70: 198 | U70: 2016-04-01 | V70: 3.592723794 | W70: 198 | X70: 2016-04-01 | Y70: 3.543938436 | AB70: 2017-10-03
B71: 202 | C71: 2016-04-05 | D71: 3.312622296 | E71: 202 | F71: 2016-04-05 | G71: 3.336923461 | H71: 202 | I71: 2016-04-05 | J71: 3.465658902 | K71: 202 | L71: 2016-04-05 | M71: 3.45830782 | N71: 224 | O71: 2016-06-14 | P71: 3.387270383 | Q71: 277 | R71: 2016-10-12 | S71: 3.196821963 | T71: 202 | U71: 2016-04-05 | V71: 3.658670549 | W71: 202 | X71: 2016-04-05 | Y71: 3.547911814 | AB71: 2017-10-02
B72: 205 | C72: 2016-04-05 | D72: 3.340004992 | E72: 205 | F72: 2016-04-05 | G72: 3.361103161 | H72: 205 | I72: 2016-04-05 | J72: 3.495953411 | K72: 205 | L72: 2016-04-05 | M72: 3.487507488 | N72: 228 | O72: 2016-06-15 | P72: 3.387270383 | Q72: 281 | R72: 2016-10-13 | S72: 3.150439268 | T72: 205 | U72: 2016-04-05 | V72: 3.693379368 | W72: 205 | X72: 2016-04-05 | Y72: 3.579698835 | AB72: 2017-09-29
B73: 208 | C73: 2016-04-06 | D73: 3.324357737 | E73: 208 | F73: 2016-04-06 | G73: 3.344983361 | H73: 208 | I73: 2016-04-06 | J73: 3.479123128 | K73: 208 | L73: 2016-04-06 | M73: 3.333166389 | N73: 232 | O73: 2016-06-16 | P73: 3.387270383 | Q73: 286 | R73: 2016-10-14 | S73: 3.158169717 | T73: 208 | U73: 2016-04-06 | V73: 3.700321131 | W73: 208 | X73: 2016-04-06 | Y73: 3.559831947 | AB73: 2017-09-28
B74: 212 | C74: 2016-04-08 | D74: 3.35956406 | E74: 212 | F74: 2016-04-08 | G74: 3.377222962 | H74: 212 | I74: 2016-04-08 | J74: 3.519515807 | K74: 212 | L74: 2016-04-08 | M74: 3.326909318 | N74: 235 | O74: 2016-06-17 | P74: 3.459515807 | Q74: 290 | R74: 2016-10-17 | S74: 3.183293677 | T74: 212 | U74: 2016-04-08 | V74: 3.745442596 | W74: 212 | X74: 2016-04-08 | Y74: 3.625392679 | AB74: 2017-09-27
B75: 215 | C75: =IF(B75="", "", OFFSET($AB$10, $AB$4-($AB$5-B$8)-ROUND(B75*($AB$4-($AB$5-B$8))/$AB$6, 0), 0)) -> 2016-04-11 | D75: 3.371299501 | E75: 215 | F75: =IF(E75="", "", OFFSET($AB$10, $AB$4-($AB$5-E$8)-ROUND(E75*($AB$4-($AB$5-E$8))/$AB$6, 0), 0)) -> 2016-04-11 | G75: 3.393342762 | H75: 215 | I75: =IF(H75="", "", OFFSET($AB$10, $AB$4-($AB$5-H$8)-ROUND(H75*($AB$4-($AB$5-H$8))/$AB$6, 0), 0)) -> 2016-04-11 | J75: 3.53634609 | K75: 215 | L75: =IF(K75="", "", OFFSET($AB$10, $AB$4-($AB$5-K$8)-ROUND(K75*($AB$4-($AB$5-K$8))/$AB$6, 0), 0)) -> 2016-04-11 | M75: 3.326909318 | N75: 239 | O75: =IF(N75="", "", OFFSET($AB$10, $AB$4-($AB$5-N$8)-ROUND(N75*($AB$4-($AB$5-N$8))/$AB$6, 0), 0)) -> 2016-06-20 | P75: 3.463420965 | Q75: 295 | R75: =IF(Q75="", "", OFFSET($AB$10, $AB$4-($AB$5-Q$8)-ROUND(Q75*($AB$4-($AB$5-Q$8))/$AB$6, 0), 0)) -> 2016-10-18 | S75: 3.183293677 | T75: 215 | U75: =IF(T75="", "", OFFSET($AB$10, $AB$4-($AB$5-T$8)-ROUND(T75*($AB$4-($AB$5-T$8))/$AB$6, 0), 0)) -> 2016-04-11 | V75: 3.766267887 | W75: 215 | X75: =IF(W75="", "", OFFSET($AB$10, $AB$4-($AB$5-W$8)-ROUND(W75*($AB$4-($AB$5-W$8))/$AB$6, 0), 0)) -> 2016-04-11 | Y75: 3.625392679 | AB75: 2017-09-26
B76: 218 | C76: 2016-04-12 | D76: 3.512124792 | E76: 218 | F76: 2016-04-12 | G76: 3.530361065 | H76: 218 | I76: 2016-04-12 | J76: 3.637327787 | K76: 218 | L76: 2016-04-12 | M76: 3.322737937 | N76: 243 | O76: 2016-06-21 | P76: 3.406796173 | Q76: 300 | R76: 2016-10-19 | S76: 3.196821963 | T76: 218 | U76: 2016-04-12 | V76: 3.825272879 | W76: 218 | X76: 2016-04-12 | Y76: 3.625392679 | AB76: 2017-09-25
B77: 222 | C77: 2016-04-13 | D77: 3.539507488 | E77: 222 | F77: 2016-04-13 | G77: 3.558570715 | H77: 222 | I77: 2016-04-13 | J77: 3.657524126 | K77: 222 | L77: 2016-04-13 | M77: 3.322737937 | N77: 246 | O77: 2016-06-22 | P77: 3.406796173 | Q77: 304 | R77: 2016-10-20 | S77: 3.223878536 | T77: 222 | U77: 2016-04-13 | V77: 3.84609817 | W77: 222 | X77: 2016-04-13 | Y77: 3.625392679 | AB77: 2017-09-22
B78: 225 | C78: 2016-04-14 | D78: 3.543419301 | E78: 225 | F78: 2016-04-14 | G78: 3.562600666 | H78: 225 | I78: 2016-04-14 | J78: 3.66425624 | K78: 225 | L78: 2016-04-14 | M78: 3.318566556 | N78: 250 | O78: 2016-06-23 | P78: 3.406796173 | Q78: 309 | R78: 2016-10-21 | S78: 3.23547421 | T78: 225 | U78: 2016-04-14 | V78: 3.835685524 | W78: 225 | X78: 2016-04-14 | Y78: 3.621419301 | AB78: 2017-09-21
B79: 228 | C79: 2016-04-15 | D79: 3.441712146 | E79: 228 | F79: 2016-04-15 | G79: 3.461851913 | H79: 228 | I79: 2016-04-15 | J79: 3.566640599 | K79: 228 | L79: 2016-04-15 | M79: 3.318566556 | N79: 254 | O79: 2016-06-24 | P79: 3.424369384 | Q79: 313 | R79: 2016-10-24 | S79: 3.181361065 | T79: 228 | U79: 2016-04-15 | V79: 3.759326123 | W79: 228 | X79: 2016-04-15 | Y79: 3.621419301 | AB79: 2017-09-20
B80: 232 | C80: 2016-04-18 | D80: 3.394770383 | E80: 232 | F80: 2016-04-18 | G80: 3.413492512 | H80: 232 | I80: 2016-04-18 | J80: 3.52624792 | K80: 232 | L80: 2016-04-18 | M80: 3.314395175 | N80: 257 | O80: 2016-06-27 | P80: 3.4321797 | Q80: 318 | R80: 2016-10-25 | S80: 3.189091514 | T80: 232 | U80: 2016-04-18 | V80: 3.721146423 | W80: 232 | X80: 2016-04-18 | Y80: 3.621419301 | AB80: 2017-09-19
B81: 235 | C81: 2016-04-19 | D81: 3.371299501 | E81: 235 | F81: 2016-04-19 | G81: 3.393342762 | H81: 235 | I81: 2016-04-19 | J81: 3.502685524 | K81: 235 | L81: 2016-04-19 | M81: 3.314395175 | N81: 261 | O81: 2016-06-28 | P81: 3.451705491 | Q81: 322 | R81: 2016-10-26 | S81: 3.181361065 | T81: 235 | U81: 2016-04-19 | V81: 3.707262895 | W81: 235 | X81: 2016-04-19 | Y81: 3.621419301 | AB81: 2017-09-18
B82: 238 | C82: 2016-04-20 | D82: 3.406505824 | E82: 238 | F82: 2016-04-20 | G82: 3.425582363 | H82: 238 | I82: 2016-04-20 | J82: 3.563274542 | K82: 238 | L82: 2016-04-20 | M82: 3.314395175 | N82: 265 | O82: 2016-06-29 | P82: 3.498567388 | Q82: 327 | R82: 2016-10-27 | S82: 3.138843594 | T82: 238 | U82: 2016-04-20 | V82: 4.082118136 | W82: 238 | X82: 2016-04-20 | Y82: 3.621419301 | AB82: 2017-09-15
B83: 241 | C83: 2016-04-21 | D83: 3.480830283 | E83: 241 | F83: 2016-04-21 | G83: 3.502151414 | H83: 241 | I83: 2016-04-21 | J83: 3.637327787 | K83: 241 | L83: 2016-04-21 | M83: 3.308138103 | N83: 269 | O83: 2016-06-30 | P83: 3.369697171 | Q83: 331 | R83: 2016-10-28 | S83: 3.173630616 | T83: 241 | U83: 2016-04-21 | V83: 4.137652246 | W83: 241 | X83: 2016-04-21 | Y83: 3.621419301 | AB83: 2017-09-14
B84: 245 | C84: 2016-04-22 | D84: 3.519948419 | E84: 245 | F84: 2016-04-22 | G84: 3.542450915 | H84: 245 | I84: 2016-04-22 | J84: 3.670988353 | K84: 245 | L84: 2016-04-22 | M84: 3.291452579 | N84: 272 | O84: 2016-07-01 | P84: 3.338455907 | Q84: 336 | R84: 2016-11-01 | S84: 3.169765391 | T84: 245 | U84: 2016-04-22 | V84: 4.18277371 | W84: 245 | X84: 2016-04-22 | Y84: 3.621419301 | AB84: 2017-09-13
B85: 248 | C85: 2016-04-25 | D85: 3.492565724 | E85: 248 | F85: 2016-04-25 | G85: 3.514241265 | H85: 248 | I85: 2016-04-25 | J85: 3.640693844 | K85: 248 | L85: 2016-04-25 | M85: 3.249738769 | N85: 276 | O85: 2016-07-05 | P85: 3.283783694 | Q85: 340 | R85: 2016-11-01 | S85: 3.192956739 | T85: 248 | U85: 2016-04-25 | V85: 4.165419301 | W85: 248 | X85: 2016-04-25 | Y85: 3.601552413 | AB85: 2017-09-12
B86: 251 | C86: 2016-04-26 | D86: 3.508212978 | E86: 251 | F86: 2016-04-26 | G86: 3.530361065 | H86: 251 | I86: 2016-04-26 | J86: 3.66425624 | K86: 251 | L86: 2016-04-26 | M86: 3.266424293 | N86: 280 | O86: 2016-07-06 | P86: 3.264257903 | Q86: 345 | R86: 2016-11-03 | S86: 3.270261231 | T86: 251 | U86: 2016-04-26 | V86: 4.220953411 | W86: 251 | X86: 2016-04-26 | Y86: 3.601552413 | AB86: 2017-09-11
B87: 255 | C87: 2016-04-27 | D87: 3.53168386 | E87: 255 | F87: 2016-04-27 | G87: 3.554540765 | H87: 255 | I87: 2016-04-27 | J87: 3.681086522 | K87: 255 | L87: 2016-04-27 | M87: 3.283109817 | N87: 283 | O87: 2016-07-07 | P87: 3.256447587 | Q87: 349 | R87: 2016-11-04 | S87: 3.297317804 | T87: 255 | U87: 2016-04-27 | V87: 4.175831947 | W87: 255 | X87: 2016-04-27 | Y87: 3.607512479 | AB87: 2017-09-08
B88: 258 | C88: 2016-04-28 | D88: 3.594272879 | E88: 258 | F88: 2016-04-28 | G88: 3.614990017 | H88: 258 | I88: 2016-04-28 | J88: 3.728211314 | K88: 258 | L88: 2016-04-28 | M88: 3.328995008 | N88: 287 | O88: 2016-07-08 | P88: 3.330645591 | Q88: 354 | R88: 2016-11-07 | S88: 3.258665557 | T88: 258 | U88: 2016-04-28 | V88: 4.155006656 | W88: 258 | X88: 2016-04-28 | Y88: 3.635326123 | AB88: 2017-09-07
B89: 261 | C89: 2016-04-29 | D89: 3.578625624 | E89: 261 | F89: 2016-04-29 | G89: 3.598870216 | H89: 261 | I89: 2016-04-29 | J89: 3.687818636 | K89: 261 | L89: 2016-04-29 | M89: 3.29562396 | N89: 291 | O89: 2016-07-11 | P89: 3.3111198 | Q89: 359 | R89: 2016-11-08 | S89: 3.250935108 | T89: 261 | U89: 2016-04-29 | V89: 4.0890599 | W89: 261 | X89: 2016-04-29 | Y89: 3.559831947 | AB89: 2017-09-06
B90: 265 | C90: 2016-05-02 | D90: 3.938512479 | E90: 265 | F90: 2016-05-02 | G90: 3.627079867 | H90: 265 | I90: 2016-05-02 | J90: 3.714747088 | K90: 265 | L90: 2016-05-02 | M90: 3.320652246 | N90: 294 | O90: 2016-07-12 | P90: 3.397033278 | Q90: 363 | R90: 2016-11-09 | S90: 3.200687188 | T90: 265 | U90: 2016-05-02 | V90: 4.075176373 | W90: 265 | X90: 2016-05-02 | Y90: 3.57175208 | AB90: 2017-09-05
B91: 268 | C91: 2016-05-03 | D91: 3.860276206 | E91: 268 | F91: 2016-05-03 | G91: 3.941415973 | H91: 268 | I91: 2016-05-03 | J91: 3.726528286 | K91: 268 | L91: 2016-05-03 | M91: 3.333166389 | N91: 298 | O91: 2016-07-13 | P91: 3.400938436 | Q91: 368 | R91: 2016-11-10 | S91: 3.204552413 | T91: 268 | U91: 2016-05-03 | V91: 4.078647255 | W91: 268 | X91: 2016-05-03 | Y91: 3.587645591 | AB91: 2017-09-01
B92: 271 | C92: 2016-05-04 | D92: 3.82115807 | E92: 271 | F92: 2016-05-04 | G92: 3.925296173 | H92: 271 | I92: 2016-05-04 | J92: 3.726528286 | K92: 271 | L92: 2016-05-04 | M92: 3.33733777 | N92: 302 | O92: 2016-07-14 | P92: 3.3111198 | Q92: 372 | R92: 2016-11-14 | S92: 3.266396007 | T92: 271 | U92: 2016-05-04 | V92: 4.082118136 | W92: 271 | X92: 2016-05-04 | Y92: 3.591618968 | AB92: 2017-08-31
B93: 275 | C93: 2016-05-05 | D93: 3.793775374 | E93: 275 | F93: 2016-05-05 | G93: 3.701633943 | H93: 275 | I93: 2016-05-05 | J93: 3.667622296 | K93: 275 | L93: 2016-05-05 | M93: 3.278938436 | N93: 305 | O93: 2016-07-15 | P93: 3.365792013 | Q93: 377 | R93: 2016-11-15 | S93: 3.28572213 | T93: 275 | U93: 2016-05-05 | V93: 4.092530782 | W93: 275 | X93: 2016-05-05 | Y93: 3.551885191 | AB93: 2017-08-30
B94: 278 | C94: 2016-05-06 | D94: 3.758569052 | E94: 278 | F94: 2016-05-06 | G94: 3.701633943 | H94: 278 | I94: 2016-05-06 | J94: 3.650792013 | K94: 278 | L94: 2016-05-06 | M94: 3.258081531 | N94: 309 | O94: 2016-07-18 | P94: 3.307214642 | Q94: 381 | R94: 2016-11-16 | S94: 3.343700499 | T94: 278 | U94: 2016-05-06 | V94: 4.061292845 | W94: 278 | X94: 2016-05-06 | Y94: 3.532018303 | AB94: 2017-08-29
B95: 281 | C95: 2016-05-09 | D95: 3.727274542 | E95: 281 | F95: 2016-05-09 | G95: 3.699618968 | H95: 281 | I95: 2016-05-09 | J95: 3.640693844 | K95: 281 | L95: 2016-05-09 | M95: 3.249738769 | N95: 313 | O95: 2016-07-19 | P95: 3.303309484 | Q95: 386 | R95: 2016-11-17 | S95: 3.397813644 | T95: 281 | U95: 2016-05-09 | V95: 4.057821963 | W95: 281 | X95: 2016-05-09 | Y95: 3.535991681 | AB95: 2017-08-28
B96: 284 | C96: 2016-05-10 | D96: 3.69206822 | E96: 284 | F96: 2016-05-10 | G96: 3.711708819 | H96: 284 | I96: 2016-05-10 | J96: 3.623863561 | K96: 284 | L96: 2016-05-10 | M96: 3.233053245 | N96: 316 | O96: 2016-07-20 | P96: 3.279878536 | Q96: 390 | R96: 2016-11-18 | S96: 3.363026622 | T96: 284 | U96: 2016-05-10 | V96: 4.009229617 | W96: 284 | X96: 2016-05-10 | Y96: 3.516124792 | AB96: 2017-08-25
B97: 288 | C97: 2016-05-11 | D97: 3.668597338 | E97: 288 | F97: 2016-05-11 | G97: 3.703648918 | H97: 288 | I97: 2016-05-11 | J97: 3.66425624 | K97: 288 | L97: 2016-05-11 | M97: 3.274767055 | N97: 320 | O97: 2016-07-21 | P97: 3.287688852 | Q97: 395 | R97: 2016-11-21 | S97: 3.718627288 | T97: 288 | U97: 2016-05-11 | V97: 3.957166389 | W97: 288 | X97: 2016-05-11 | Y97: 3.839955075 | AB97: 2017-08-24
B98: 291 | C98: 2016-05-12 | D98: 3.621655574 | E98: 291 | F98: 2016-05-12 | G98: 3.699618968 | H98: 291 | I98: 2016-05-12 | J98: 3.670988353 | K98: 291 | L98: 2016-05-12 | M98: 3.614734609 | N98: 324 | O98: 2016-07-25 | P98: 3.281831115 | Q98: 399 | R98: 2016-11-22 | S98: 3.730222962 | T98: 291 | U98: 2016-05-12 | V98: 3.953695507 | W98: 291 | X98: 2016-05-12 | Y98: 3.839955075 | AB98: 2017-08-23
B99: 294 | C99: 2016-05-13 | D99: 3.613831947 | E99: 294 | F99: 2016-05-13 | G99: 3.703648918 | H99: 294 | I99: 2016-05-13 | J99: 3.681086522 | K99: 294 | L99: 2016-05-13 | M99: 3.614734609 | N99: 327 | O99: 2016-07-25 | P99: 3.281831115 | Q99: 404 | R99: 2016-11-23 | S99: 3.548557404 | T99: 294 | U99: 2016-05-13 | V99: 4.002287854 | W99: 294 | X99: 2016-05-13 | Y99: 3.839955075 | AB99: 2017-08-22
B100: 298 | C100: 2016-05-16 | D100: 3.633391015 | E100: 298 | F100: 2016-05-16 | G100: 3.711708819 | H100: 298 | I100: 2016-05-16 | J100: 3.684452579 | K100: 298 | L100: 2016-05-16 | M100: 3.612648918 | N100: 331 | O100: 2016-07-26 | P100: 3.281831115 | Q100: 408 | R100: 2016-11-25 | S100: 3.521500832 | T100: 298 | U100: 2016-05-16 | V100: 4.016171381 | W100: 298 | X100: 2016-05-16 | Y100: 3.839955075 | AB100: 2017-08-21
B101: 301 | C101: 2016-05-17 | D101: 3.699891847 | E101: 301 | F101: 2016-05-17 | G101: 3.731858569 | H101: 301 | I101: 2016-05-17 | J101: 3.687818636 | K101: 301 | L101: 2016-05-17 | M101: 3.696076539 | N101: 335 | O101: 2016-07-28 | P101: 3.281831115 | Q101: 413 | R101: 2016-11-28 | S101: 3.660648918 | T101: 301 | U101: 2016-05-17 | V101: 3.986668885 | W101: 301 | X101: 2016-05-17 | Y101: 3.839955075 | AB101: 2017-08-18
B102: 304 | C102: 2016-05-18 | D102: 3.678376872 | E102: 304 | F102: 2016-05-18 | G102: 3.711708819 | H102: 304 | I102: 2016-05-18 | J102: 3.681086522 | K102: 304 | L102: 2016-05-18 | M102: 3.704419301 | N102: 338 | O102: 2016-07-28 | P102: 3.281831115 | Q102: 417 | R102: 2016-11-29 | S102: 3.679975042 | T102: 304 | U102: 2016-05-18 | V102: 3.986668885 | W102: 304 | X102: 2016-05-18 | Y102: 3.839955075 | AB102: 2017-08-17
B103: 308 | C103: 2016-05-19 | D103: 3.678376872 | E103: 308 | F103: 2016-05-19 | G103: 3.703648918 | H103: 308 | I103: 2016-05-19 | J103: 3.677720466 | K103: 308 | L103: 2016-05-19 | M103: 3.604306156 | N103: 342 | O103: 2016-08-01 | P103: 3.279878536 | Q103: 422 | R103: 2016-11-30 | S103: 3.683840266 | T103: 308 | U103: 2016-05-19 | V103: 3.986668885 | W103: 308 | X103: 2016-05-19 | Y103: 3.839955075 | AB103: 2017-08-16
B104: 311 | C104: 2016-05-20 | D104: 3.684244592 | E104: 311 | F104: 2016-05-20 | G104: 3.627079867 | H104: 311 | I104: 2016-05-20 | J104: 3.670988353 | K104: 311 | L104: 2016-05-20 | M104: 3.662705491 | N104: 346 | O104: 2016-08-02 | P104: 3.287688852 | Q104: 427 | R104: 2016-12-01 | S104: 3.699301165 | T104: 311 | U104: 2016-05-20 | V104: 3.957166389 | W104: 311 | X104: 2016-05-20 | Y104: 3.839955075 | AB104: 2017-08-15
B105: 314 | C105: 2016-05-23 | D105: 3.707715474 | E105: 314 | F105: 2016-05-23 | G105: 3.623049917 | H105: 314 | I105: 2016-05-23 | J105: 3.691184692 | K105: 314 | L105: 2016-05-23 | M105: 3.656448419 | N105: 349 | O105: 2016-08-02 | P105: 3.293546589 | Q105: 431 | R105: 2016-12-02 | S105: 3.749549085 | T105: 314 | U105: 2016-05-23 | V105: 4.040467554 | W105: 314 | X105: 2016-05-23 | Y105: 3.839955075 | AB105: 2017-08-14
B106: 318 | C106: 2016-05-24 | D106: 3.676420965 | E106: 318 | F106: 2016-05-24 | G106: 3.554540765 | H106: 318 | I106: 2016-05-24 | J106: 3.657524126 | K106: 318 | L106: 2016-05-24 | M106: 3.656448419 | N106: 353 | O106: 2016-08-04 | P106: 3.293546589 | Q106: 436 | R106: 2016-12-05 | S106: 3.768875208 | T106: 318 | U106: 2016-05-24 | V106: 3.960637271 | W106: 318 | X106: 2016-05-24 | Y106: 3.839955075 | AB106: 2017-08-11
B107: 321 | C107: 2016-05-25 | D107: 3.699891847 | E107: 321 | F107: 2016-05-25 | G107: 3.546480865 | H107: 321 | I107: 2016-05-25 | J107: 3.660890183 | K107: 321 | L107: 2016-05-25 | M107: 3.650191348 | N107: 357 | O107: 2016-08-05 | P107: 3.293546589 | Q107: 440 | R107: 2016-12-06 | S107: 3.79593178 | T107: 321 | U107: 2016-05-25 | V107: 3.951960067 | W107: 321 | X107: 2016-05-25 | Y107: 3.839955075 | AB107: 2017-08-10
B108: 324 | C108: 2016-05-26 | D108: 3.739009983 | E108: 324 | F108: 2016-05-26 | G108: 3.554540765 | H108: 324 | I108: 2016-05-26 | J108: 3.670988353 | K108: 324 | L108: 2016-05-26 | M108: 3.646019967 | N108: 360 | O108: 2016-08-08 | P108: 3.29159401 | Q108: 445 | R108: 2016-12-07 | S108: 3.772740433 | T108: 324 | U108: 2016-05-26 | V108: 3.951960067 | W108: 324 | X108: 2016-05-26 | Y108: 3.810154742 | AB108: 2017-08-09
B109: 327 | C109: 2016-05-27 | D109: 3.535595674 | E109: 327 | F109: 2016-05-27 | G109: 3.53237604 | H109: 327 | I109: 2016-05-27 | J109: 3.645742928 | K109: 327 | L109: 2016-05-27 | M109: 3.65853411 | N109: 364 | O109: 2016-08-09 | P109: 3.287688852 | Q109: 449 | R109: 2016-12-08 | S109: 3.935079867 | T109: 327 | U109: 2016-05-27 | V109: 3.951960067 | W109: 327 | X109: 2016-05-27 | Y109: 3.782341098 | AB109: 2017-08-08
B110: 331 | C110: 2016-06-01 | D110: 3.53168386 | E110: 331 | F110: 2016-06-01 | G110: 3.53237604 | H110: 331 | I110: 2016-06-01 | J110: 3.645742928 | K110: 331 | L110: 2016-06-01 | M110: 3.662705491 | N110: 368 | O110: 2016-08-10 | P110: 3.303309484 | Q110: 454 | R110: 2016-12-09 | S110: 3.969866889 | T110: 331 | U110: 2016-06-01 | V110: 3.974520799 | W110: 331 | X110: 2016-06-01 | Y110: 3.766447587 | AB110: 2017-08-07
B111: 334 | C111: 2016-06-01 | D111: 3.527772047 | E111: 334 | F111: 2016-06-01 | G111: 3.542450915 | H111: 334 | I111: 2016-06-01 | J111: 3.657524126 | K111: 334 | L111: 2016-06-01 | M111: 3.671048253 | N111: 371 | O111: 2016-08-11 | P111: 3.295499168 | Q111: 458 | R111: 2016-12-12 | S111: 3.985327787 | T111: 334 | U111: 2016-06-01 | V111: 4.002287854 | W111: 334 | X111: 2016-06-01 | Y111: 3.77836772 | AB111: 2017-08-04
B112: 337 | C112: 2016-06-02 | D112: 3.555154742 | E112: 337 | F112: 2016-06-02 | G112: 3.486031614 | H112: 337 | I112: 2016-06-02 | J112: 3.583470882 | K112: 337 | L112: 2016-06-02 | M112: 3.65853411 | N112: 375 | O112: 2016-08-12 | P112: 3.287688852 | Q112: 463 | R112: 2016-12-13 | S112: 4.05490183 | T112: 337 | U112: 2016-06-02 | V112: 4.0508802 | W112: 337 | X112: 2016-06-02 | Y112: 3.6750599 | AB112: 2017-08-03
B113: 341 | C113: 2016-06-06 | D113: 3.463227121 | E113: 341 | F113: 2016-06-06 | G113: 3.453792013 | H113: 341 | I113: 2016-06-06 | J113: 3.53634609 | K113: 341 | L113: 2016-06-06 | M113: 3.587620632 | N113: 379 | O113: 2016-08-15 | P113: 3.279878536 | Q113: 467 | R113: 2016-12-14 | S113: 4.170858569 | T113: 341 | U113: 2016-06-06 | V113: 4.082118136 | W113: 341 | X113: 2016-06-06 | Y113: 3.607512479 | AB113: 2017-08-02
B114: 344 | C114: 2016-06-07 | D114: 3.463227121 | E114: 344 | F114: 2016-06-07 | G114: 3.437672213 | H114: 344 | I114: 2016-06-07 | J114: 3.52624792 | K114: 344 | L114: 2016-06-07 | M114: 3.683562396 | N114: 383 | O114: 2016-08-16 | P114: 3.27206822 | Q114: 472 | R114: 2016-12-16 | S114: 4.058767055 | T114: 344 | U114: 2016-06-07 | V114: 3.960637271 | W114: 344 | X114: 2016-06-07 | Y114: 3.615459235 | AB114: 2017-08-01
B115: 347 | C115: 2016-06-07 | D115: 3.457359401 | E115: 347 | F115: 2016-06-07 | G115: 3.447747088 | H115: 347 | I115: 2016-06-07 | J115: 3.543078203 | K115: 347 | L115: 2016-06-07 | M115: 3.666876872 | N115: 386 | O115: 2016-08-17 | P115: 3.287688852 | Q115: 476 | R115: 2016-12-16 | S115: 4.020114809 | T115: 347 | U115: 2016-06-07 | V115: 3.938076539 | W115: 347 | X115: 2016-06-07 | Y115: 3.62340599 | AB115: 2017-07-31
B116: 351 | C116: 2016-06-09 | D116: 3.418241265 | E116: 351 | F116: 2016-06-09 | G116: 3.447747088 | H116: 351 | I116: 2016-06-09 | J116: 3.539712146 | K116: 351 | L116: 2016-06-09 | M116: 3.57927787 | N116: 390 | O116: 2016-08-18 | P116: 3.27206822 | Q116: 481 | R116: 2016-12-20 | S116: 4.049103993 | T116: 351 | U116: 2016-06-09 | V116: 3.938076539 | W116: 351 | X116: 2016-06-09 | Y116: 3.611485857 | AB116: 2017-07-28
B117: 354 | C117: 2016-06-10 | D117: 3.412373544 | E117: 354 | F117: 2016-06-10 | G117: 3.425582363 | H117: 354 | I117: 2016-06-10 | J117: 3.51614975 | K117: 354 | L117: 2016-06-10 | M117: 3.575106489 | N117: 394 | O117: 2016-08-19 | P117: 3.264257903 | Q117: 486 | R117: 2016-12-21 | S117: 4.049103993 | T117: 354 | U117: 2016-06-10 | V117: 3.870394343 | W117: 354 | X117: 2016-06-10 | Y117: 3.599565724 | AB117: 2017-07-27
B118: 357 | C118: 2016-06-13 | D118: 3.412373544 | E118: 357 | F118: 2016-06-13 | G118: 3.441702163 | H118: 357 | I118: 2016-06-13 | J118: 3.54644426 | K118: 357 | L118: 2016-06-13 | M118: 3.708590682 | N118: 397 | O118: 2016-08-22 | P118: 3.275973378 | Q118: 490 | R118: 2016-12-22 | S118: 4.10514975 | T118: 357 | U118: 2016-06-13 | V118: 3.86518802 | W118: 357 | X118: 2016-06-13 | Y118: 3.635326123 | AB118: 2017-07-26
B119: 361 | C119: 2016-06-14 | D119: 3.410417637 | E119: 361 | F119: 2016-06-14 | G119: 3.429612313 | H119: 361 | I119: 2016-06-14 | J119: 3.522881864 | K119: 361 | L119: 2016-06-14 | M119: 3.704419301 | N119: 401 | O119: 2016-08-23 | P119: 3.287688852 | Q119: 495 | R119: 2016-12-23 | S119: 4.070362729 | T119: 361 | U119: 2016-06-14 | V119: 3.86518802 | W119: 361 | X119: 2016-06-14 | Y119: 3.591618968 | AB119: 2017-07-25
B120: 364 | C120: 2016-06-15 | D120: 3.418241265 | E120: 364 | F120: 2016-06-15 | G120: 3.397372712 | H120: 364 | I120: 2016-06-15 | J120: 3.479123128 | K120: 364 | L120: 2016-06-15 | M120: 3.69816223 | N120: 405 | O120: 2016-08-24 | P120: 3.289641431 | Q120: 499 | R120: 2016-12-27 | S120: 4.066497504 | T120: 364 | U120: 2016-06-15 | V120: 3.86518802 | W120: 364 | X120: 2016-06-15 | Y120: 3.539965058 | AB120: 2017-07-24
B121: 367 | C121: 2016-06-16 | D121: 3.441712146 | E121: 367 | F121: 2016-06-16 | G121: 3.391327787 | H121: 367 | I121: 2016-06-16 | J121: 3.469024958 | K121: 367 | L121: 2016-06-16 | M121: 3.69816223 | N121: 408 | O121: 2016-08-25 | P121: 3.289641431 | Q121: 504 | R121: 2016-12-28 | S121: 4.085823627 | T121: 367 | U121: 2016-06-16 | V121: 3.86518802 | W121: 367 | X121: 2016-06-16 | Y121: 3.532018303 | AB121: 2017-07-21
B122: 370 | C122: 2016-06-17 | D122: 3.433888519 | E122: 370 | F122: 2016-06-17 | G122: 3.391327787 | H122: 370 | I122: 2016-06-17 | J122: 3.470707987 | K122: 370 | L122: 2016-06-17 | M122: 3.69816223 | N122: 412 | O122: 2016-08-26 | P122: 3.285736273 | Q122: 508 | R122: 2016-12-29 | S122: 4.139936772 | T122: 370 | U122: 2016-06-17 | V122: 3.861717138 | W122: 370 | X122: 2016-06-17 | Y122: 3.528044925 | AB122: 2017-07-20
B123: 374 | C123: 2016-06-20 | D123: 3.40259401 | E123: 374 | F123: 2016-06-20 | G123: 3.401402662 | H123: 374 | I123: 2016-06-20 | J123: 3.470707987 | K123: 374 | L123: 2016-06-20 | M123: 3.69816223 | N123: 416 | O123: 2016-08-29 | P123: 3.285736273 | Q123: 513 | R123: 2016-12-30 | S123: 4.023980033 | T123: 374 | U123: 2016-06-20 | V123: 3.861717138 | W123: 374 | X123: 2016-06-20 | Y123: 3.537978369 | AB123: 2017-07-19
B124: 377 | C124: 2016-06-21 | D124: 3.433888519 | E124: 377 | F124: 2016-06-21 | G124: 3.449762063 | H124: 377 | I124: 2016-06-21 | J124: 3.499319468 | K124: 377 | L124: 2016-06-21 | M124: 3.696076539 | N124: 419 | O124: 2016-08-30 | P124: 3.277925957 | Q124: 517 | R124: 2017-01-03 | S124: 4.012384359 | T124: 377 | U124: 2016-06-21 | V124: 3.813124792 | W124: 377 | X124: 2016-06-21 | Y124: 3.537978369 | AB124: 2017-07-18
B125: 380 | C125: 2016-06-22 | D125: 3.40846173 | E125: 380 | F125: 2016-06-22 | G125: 3.429612313 | H125: 380 | I125: 2016-06-22 | J125: 3.470707987 | K125: 380 | L125: 2016-06-22 | M125: 3.689819468 | N125: 423 | O125: 2016-08-31 | P125: 3.277925957 | Q125: 522 | R125: 2017-01-04 | S125: 3.958271215 | T125: 380 | U125: 2016-06-22 | V125: 3.813124792 | W125: 380 | X125: 2016-06-22 | Y125: 3.508178037 | AB125: 2017-07-17
B126: 384 | C126: 2016-06-23 | D126: 3.40846173 | E126: 384 | F126: 2016-06-23 | G126: 3.433642263 | H126: 384 | I126: 2016-06-23 | J126: 3.470707987 | K126: 384 | L126: 2016-06-23 | M126: 3.689819468 | N126: 427 | O126: 2016-09-01 | P126: 3.281831115 | Q126: 526 | R126: 2017-01-05 | S126: 3.950540765 | T126: 384 | U126: 2016-06-23 | V126: 3.813124792 | W126: 384 | X126: 2016-06-23 | Y126: 3.50221797 | AB126: 2017-07-14
B127: 387 | C127: 2016-06-24 | D127: 3.414329451 | E127: 387 | F127: 2016-06-24 | G127: 3.437672213 | H127: 387 | I127: 2016-06-24 | J127: 3.470707987 | K127: 387 | L127: 2016-06-24 | M127: 3.689819468 | N127: 430 | O127: 2016-09-02 | P127: 3.281831115 | Q127: 531 | R127: 2017-01-06 | S127: 3.942810316 | T127: 387 | U127: 2016-06-24 | V127: 3.813124792 | W127: 387 | X127: 2016-06-24 | Y127: 3.50221797 | AB127: 2017-07-13
B128: 390 | C128: 2016-06-27 | D128: 3.418241265 | E128: 390 | F128: 2016-06-27 | G128: 3.441702163 | H128: 390 | I128: 2016-06-27 | J128: 3.482489185 | K128: 390 | L128: 2016-06-27 | M128: 3.685648087 | N128: 434 | O128: 2016-09-06 | P128: 3.281831115 | Q128: 535 | R128: 2017-01-09 | S128: 3.931214642 | T128: 390 | U128: 2016-06-27 | V128: 3.80965391 | W128: 390 | X128: 2016-06-27 | Y128: 3.524071547 | AB128: 2017-07-12
B129: 394 | C129: 2016-06-28 | D129: 3.492565724 | E129: 394 | F129: 2016-06-28 | G129: 3.514241265 | H129: 394 | I129: 2016-06-28 | J129: 3.570006656 | K129: 394 | L129: 2016-06-28 | M129: 3.685648087 | N129: 438 | O129: 2016-09-07 | P129: 3.281831115 | Q129: 540 | R129: 2017-01-10 | S129: 3.913821131 | T129: 394 | U129: 2016-06-28 | V129: 3.80965391 | W129: 394 | X129: 2016-06-28 | Y129: 3.631352745 | AB129: 2017-07-11
B130: 397 | C130: 2016-06-29 | D130: 3.512124792 | E130: 397 | F130: 2016-06-29 | G130: 3.534391015 | H130: 397 | I130: 2016-06-29 | J130: 3.583470882 | K130: 397 | L130: 2016-06-29 | M130: 3.681476705 | N130: 441 | O130: 2016-09-08 | P130: 3.27206822 | Q130: 545 | R130: 2017-01-11 | S130: 3.913821131 | T130: 397 | U130: 2016-06-29 | V130: 3.80965391 | W130: 397 | X130: 2016-06-29 | Y130: 3.635326123 | AB130: 2017-07-10
B131: 400 | C131: 2016-06-30 | D131: 3.523860233 | E131: 400 | F131: 2016-06-30 | G131: 3.546480865 | H131: 400 | I131: 2016-06-30 | J131: 3.596935108 | K131: 400 | L131: 2016-06-30 | M131: 3.681476705 | N131: 445 | O131: 2016-09-09 | P131: 3.301356905 | Q131: 549 | R131: 2017-01-12 | S131: 3.911888519 | T131: 400 | U131: 2016-06-30 | V131: 3.80965391 | W131: 400 | X131: 2016-06-30 | Y131: 3.659166389 | AB131: 2017-07-07
B132: 404 | C132: 2016-07-01 | D132: 3.44562396 | E132: 404 | F132: 2016-07-01 | G132: 3.469911814 | H132: 404 | I132: 2016-07-01 | J132: 3.492587354 | K132: 404 | L132: 2016-07-01 | M132: 3.677305324 | N132: 449 | O132: 2016-09-12 | P132: 3.301356905 | Q132: 554 | R132: 2017-01-13 | S132: 4.043306156 | T132: 404 | U132: 2016-07-01 | V132: 3.80965391 | W132: 404 | X132: 2016-07-01 | Y132: 3.532018303 | AB132: 2017-07-06
B133: 407 | C133: 2016-07-05 | D133: 3.418241265 | E133: 407 | F133: 2016-07-05 | G133: 3.441702163 | H133: 407 | I133: 2016-07-05 | J133: 3.462292845 | K133: 407 | L133: 2016-07-05 | M133: 3.677305324 | N133: 452 | O133: 2016-09-13 | P133: 3.307214642 | Q133: 558 | R133: 2017-01-17 | S133: 4.039440932 | T133: 407 | U133: 2016-07-05 | V133: 3.80965391 | W133: 407 | X133: 2016-07-05 | Y133: 3.488311148 | AB133: 2017-07-05
B134: 410 | C134: 2016-07-06 | D134: 3.40259401 | E134: 410 | F134: 2016-07-06 | G134: 3.425582363 | H134: 410 | I134: 2016-07-06 | J134: 3.445462562 | K134: 410 | L134: 2016-07-06 | M134: 3.677305324 | N134: 456 | O134: 2016-09-14 | P134: 3.225206323 | Q134: 563 | R134: 2017-01-18 | S134: 4.143801997 | T134: 410 | U134: 2016-07-06 | V134: 3.80965391 | W134: 410 | X134: 2016-07-06 | Y134: 3.6750599 | AB134: 2017-07-03
B135: 414 | C135: 2016-07-07 | D135: 3.390858569 | E135: 414 | F135: 2016-07-07 | G135: 3.550510815 | H135: 414 | I135: 2016-07-07 | J135: 3.425266223 | K135: 414 | L135: 2016-07-07 | M135: 3.677305324 | N135: 460 | O135: 2016-09-15 | P135: 3.209585691 | Q135: 567 | R135: 2017-01-19 | S135: 4.155397671 | T135: 414 | U135: 2016-07-07 | V135: 3.80965391 | W135: 414 | X135: 2016-07-07 | Y135: 3.627379368 | AB135: 2017-06-30
B136: 417 | C136: 2016-07-08 | D136: 3.31653411 | E136: 417 | F136: 2016-07-08 | G136: 3.195875208 | H136: 417 | I136: 2016-07-08 | J136: 3.361311148 | K136: 417 | L136: 2016-07-08 | M136: 3.671048253 | N136: 463 | O136: 2016-09-16 | P136: 3.182249584 | Q136: 572 | R136: 2017-01-20 | S136: 4.186319468 | T136: 417 | U136: 2016-07-08 | V136: 3.802712146 | W136: 417 | X136: 2016-07-08 | Y136: 3.470430948 | AB136: 2017-06-29
B137: 420 | C137: 2016-07-11 | D137: 3.27350416 | E137: 420 | F137: 2016-07-11 | G137: 3.189830283 | H137: 420 | I137: 2016-07-11 | J137: 3.354579035 | K137: 420 | L137: 2016-07-11 | M137: 3.625163062 | N137: 467 | O137: 2016-09-19 | P137: 3.174439268 | Q137: 576 | R137: 2017-01-23 | S137: 4.182454243 | T137: 420 | U137: 2016-07-11 | V137: 3.802712146 | W137: 420 | X137: 2016-07-11 | Y137: 3.470430948 | AB137: 2017-06-28
B138: 423 | C138: 2016-07-12 | D138: 3.163973378 | E138: 423 | F138: 2016-07-12 | G138: 3.189830283 | H138: 423 | I138: 2016-07-12 | J138: 3.28052579 | K138: 423 | L138: 2016-07-12 | M138: 3.49585025 | N138: 471 | O138: 2016-09-21 | P138: 3.17053411 | Q138: 581 | R138: 2017-01-24 | S138: 4.097419301 | T138: 423 | U138: 2016-07-12 | V138: 3.802712146 | W138: 423 | X138: 2016-07-12 | Y138: 3.470430948 | AB138: 2017-06-27
B139: 427 | C139: =IF(B139="", "", OFFSET($AB$10, $AB$4-($AB$5-B$8)-ROUND(B139*($AB$4-($AB$5-B$8))/$AB$6, 0), 0)) -> 2016-07-13 | D139: 3.160061564 | E139: 427 | F139: =IF(E139="", "", OFFSET($AB$10, $AB$4-($AB$5-E$8)-ROUND(E139*($AB$4-($AB$5-E$8))/$AB$6, 0), 0)) -> 2016-07-13 | G139: 3.187815308 | H139: 427 | I139: =IF(H139="", "", OFFSET($AB$10, $AB$4-($AB$5-H$8)-ROUND(H139*($AB$4-($AB$5-H$8))/$AB$6, 0), 0)) -> 2016-07-13 | J139: 3.283891847 | K139: 427 | L139: =IF(K139="", "", OFFSET($AB$10, $AB$4-($AB$5-K$8)-ROUND(K139*($AB$4-($AB$5-K$8))/$AB$6, 0), 0)) -> 2016-07-13 | M139: 3.449965058 | N139: 474 | O139: =IF(N139="", "", OFFSET($AB$10, $AB$4-($AB$5-N$8)-ROUND(N139*($AB$4-($AB$5-N$8))/$AB$6, 0), 0)) -> 2016-09-21 | P139: 3.119767055 | Q139: 585 | R139: =IF(Q139="", "", OFFSET($AB$10, $AB$4-($AB$5-Q$8)-ROUND(Q139*($AB$4-($AB$5-Q$8))/$AB$6, 0), 0)) -> 2017-01-25 | S139: 4.093554077 | T139: 427 | U139: =IF(T139="", "", OFFSET($AB$10, $AB$4-($AB$5-T$8)-ROUND(T139*($AB$4-($AB$5-T$8))/$AB$6, 0), 0)) -> 2016-07-13 | V139: 3.799241265 | W139: 427 | X139: =IF(W139="", "", OFFSET($AB$10, $AB$4-($AB$5-W$8)-ROUND(W139*($AB$4-($AB$5-W$8))/$AB$6, 0), 0)) -> 2016-07-13 | Y139: 3.470430948 | AB139: 2017-06-26
B140: 430 | C140: 2016-07-14 | D140: 3.191356073 | E140: 430 | F140: 2016-07-14 | G140: 3.179755408 | H140: 430 | I140: 2016-07-14 | J140: 3.320918469 | K140: 430 | L140: 2016-07-14 | M140: 3.708590682 | N140: 478 | O140: 2016-09-23 | P140: 3.108051581 | Q140: 590 | R140: 2017-01-26 | S140: 4.155397671 | T140: 430 | U140: 2016-07-14 | V140: 3.799241265 | W140: 430 | X140: 2016-07-14 | Y140: 3.466457571 | AB140: 2017-06-23
B141: 433 | C141: 2016-07-15 | D141: 3.185488353 | E141: 433 | F141: 2016-07-15 | G141: 3.173710483 | H141: 433 | I141: 2016-07-15 | J141: 3.299039101 | K141: 433 | L141: 2016-07-15 | M141: 3.702333611 | N141: 482 | O141: 2016-09-26 | P141: 3.100241265 | Q141: 594 | R141: 2017-01-27 | S141: 4.159262895 | T141: 433 | U141: 2016-07-15 | V141: 3.807918469 | W141: 433 | X141: 2016-07-15 | Y141: 3.466457571 | AB141: 2017-06-22
B142: 437 | C142: 2016-07-18 | D142: 3.185488353 | E142: 437 | F142: 2016-07-18 | G142: 3.173710483 | H142: 437 | I142: 2016-07-18 | J142: 3.299039101 | K142: 437 | L142: 2016-07-18 | M142: 3.702333611 | N142: 486 | O142: 2016-09-27 | P142: 3.102193844 | Q142: 599 | R142: 2017-01-30 | S142: 4.186319468 | T142: 437 | U142: 2016-07-18 | V142: 3.80965391 | W142: 437 | X142: 2016-07-18 | Y142: 3.466457571 | AB142: 2017-06-21
B143: 440 | C143: 2016-07-19 | D143: 3.154193844 | E143: 440 | F143: 2016-07-19 | G143: 3.171695507 | H143: 440 | I143: 2016-07-19 | J143: 3.275476705 | K143: 440 | L143: 2016-07-19 | M143: 3.702333611 | N143: 489 | O143: 2016-09-28 | P143: 3.102193844 | Q143: 604 | R143: 2017-02-01 | S143: 4.259758735 | T143: 440 | U143: 2016-07-19 | V143: 3.80965391 | W143: 440 | X143: 2016-07-19 | Y143: 3.466457571 | AB143: 2017-06-20
B144: 443 | C144: 2016-07-20 | D144: 3.154193844 | E144: 443 | F144: 2016-07-20 | G144: 3.167665557 | H144: 443 | I144: 2016-07-20 | J144: 3.275476705 | K144: 443 | L144: 2016-07-20 | M144: 3.702333611 | N144: 493 | O144: 2016-09-29 | P144: 3.08852579 | Q144: 608 | R144: 2017-02-02 | S144: 4.31387188 | T144: 443 | U144: 2016-07-20 | V144: 3.797505824 | W144: 443 | X144: 2016-07-20 | Y144: 3.466457571 | AB144: 2017-06-19
B145: 447 | C145: 2016-07-21 | D145: 3.152237937 | E145: 447 | F145: 2016-07-21 | G145: 3.157590682 | H145: 447 | I145: 2016-07-21 | J145: 3.268744592 | K145: 447 | L145: 2016-07-21 | M145: 3.70024792 | N145: 497 | O145: 2016-09-30 | P145: 3.069 | Q145: 613 | R145: 2017-02-03 | S145: 4.37185025 | T145: 447 | U145: 2016-07-21 | V145: 3.755855241 | W145: 447 | X145: 2016-07-21 | Y145: 3.462484193 | AB145: 2017-06-16
B146: 450 | C146: 2016-07-22 | D146: 3.15614975 | E146: 450 | F146: 2016-07-22 | G146: 3.157590682 | H146: 450 | I146: 2016-07-22 | J146: 3.268744592 | K146: 450 | L146: 2016-07-22 | M146: 3.693990849 | N146: 500 | O146: 2016-10-03 | P146: 3.092430948 | Q146: 617 | R146: 2017-02-06 | S146: 4.420165557 | T146: 450 | U146: 2016-07-22 | V146: 3.721146423 | W146: 450 | X146: 2016-07-22 | Y146: 3.462484193 | AB146: 2017-06-15
B147: 453 | C147: 2016-07-25 | D147: 3.160061564 | E147: 453 | F147: 2016-07-25 | G147: 3.155575707 | H147: 453 | I147: 2016-07-25 | J147: 3.277159734 | K147: 453 | L147: 2016-07-25 | M147: 3.693990849 | N147: 504 | O147: 2016-10-04 | P147: 3.199822795 | Q147: 622 | R147: 2017-02-07 | S147: 4.420165557 | T147: 453 | U147: 2016-07-25 | V147: 3.707262895 | W147: 453 | X147: 2016-07-25 | Y147: 3.462484193 | AB147: 2017-06-14
B148: 457 | C148: 2016-07-27 | D148: 3.15614975 | E148: 457 | F148: 2016-07-27 | G148: 3.149530782 | H148: 457 | I148: 2016-07-27 | J148: 3.267061564 | K148: 457 | L148: 2016-07-27 | M148: 3.693990849 | N148: 508 | O148: 2016-10-05 | P148: 3.199822795 | Q148: 626 | R148: 2017-02-08 | S148: 4.416300333 | T148: 457 | U148: 2016-07-27 | V148: 3.69685025 | W148: 457 | X148: 2016-07-27 | Y148: 3.462484193 | AB148: 2017-06-13
B149: 460 | C149: 2016-07-27 | D149: 3.146370216 | E149: 460 | F149: 2016-07-27 | G149: 3.149530782 | H149: 460 | I149: 2016-07-27 | J149: 3.260329451 | K149: 460 | L149: 2016-07-27 | M149: 3.691905158 | N149: 511 | O149: 2016-10-06 | P149: 3.131482529 | Q149: 631 | R149: 2017-02-09 | S149: 4.416300333 | T149: 460 | U149: 2016-07-27 | V149: 3.689908486 | W149: 460 | X149: 2016-07-27 | Y149: 3.462484193 | AB149: 2017-06-12
B150: 463 | C150: 2016-07-28 | D150: 3.146370216 | E150: 463 | F150: 2016-07-28 | G150: 3.143485857 | H150: 463 | I150: 2016-07-28 | J150: 3.256963394 | K150: 463 | L150: 2016-07-28 | M150: 3.685648087 | N150: 515 | O150: 2016-10-07 | P150: 3.123672213 | Q150: 635 | R150: 2017-02-10 | S150: 4.41436772 | T150: 463 | U150: 2016-07-28 | V150: 3.682966722 | W150: 463 | X150: 2016-07-28 | Y150: 3.462484193 | AB150: 2017-06-09
B151: 466 | C151: 2016-07-29 | D151: 3.146370216 | E151: 466 | F151: 2016-07-29 | G151: 3.139455907 | H151: 466 | I151: 2016-07-29 | J151: 3.260329451 | K151: 466 | L151: 2016-07-29 | M151: 3.685648087 | N151: 519 | O151: 2016-10-11 | P151: 3.111956739 | Q151: 640 | R151: 2017-02-13 | S151: 4.379580699 | T151: 466 | U151: 2016-07-29 | V151: 3.672554077 | W151: 466 | X151: 2016-07-29 | Y151: 3.462484193 | AB151: 2017-06-08
B152: 470 | C152: 2016-08-02 | D152: 3.140502496 | E152: 470 | F152: 2016-08-02 | G152: 3.133410982 | H152: 470 | I152: 2016-08-02 | J152: 3.248548253 | K152: 470 | L152: 2016-08-02 | M152: 3.685648087 | N152: 522 | O152: 2016-10-12 | P152: 3.100241265 | Q152: 644 | R152: 2017-02-14 | S152: 4.358321963 | T152: 470 | U152: 2016-08-02 | V152: 3.658670549 | W152: 470 | X152: 2016-08-02 | Y152: 3.460497504 | AB152: 2017-06-07
B153: 473 | C153: 2016-08-03 | D153: 3.136590682 | E153: 473 | F153: 2016-08-03 | G153: 3.133410982 | H153: 473 | I153: 2016-08-03 | J153: 3.248548253 | K153: 473 | L153: 2016-08-03 | M153: 3.681476705 | N153: 526 | O153: 2016-10-13 | P153: 3.092430948 | Q153: 649 | R153: 2017-02-15 | S153: 4.358321963 | T153: 473 | U153: 2016-08-03 | V153: 3.665612313 | W153: 473 | X153: 2016-08-03 | Y153: 3.464470882 | AB153: 2017-06-06
B154: 476 | C154: 2016-08-03 | D154: 3.138546589 | E154: 476 | F154: 2016-08-03 | G154: 3.131396007 | H154: 476 | I154: 2016-08-03 | J154: 3.256963394 | K154: 476 | L154: 2016-08-03 | M154: 3.681476705 | N154: 530 | O154: 2016-10-14 | P154: 3.096336106 | Q154: 653 | R154: 2017-02-16 | S154: 4.358321963 | T154: 476 | U154: 2016-08-03 | V154: 3.672554077 | W154: 476 | X154: 2016-08-03 | Y154: 3.466457571 | AB154: 2017-06-05
B155: 480 | C155: 2016-08-05 | D155: 3.138546589 | E155: 480 | F155: 2016-08-05 | G155: 3.123336106 | H155: 480 | I155: 2016-08-05 | J155: 3.246865225 | K155: 480 | L155: 2016-08-05 | M155: 3.677305324 | N155: 533 | O155: 2016-10-17 | P155: 3.221301165 | Q155: 658 | R155: 2017-02-17 | S155: 4.358321963 | T155: 480 | U155: 2016-08-05 | V155: 3.665612313 | W155: 480 | X155: 2016-08-05 | Y155: 3.466457571 | AB155: 2017-06-02
B156: 483 | C156: 2016-08-08 | D156: 3.105296173 | E156: 483 | F156: 2016-08-08 | G156: 3.127366057 | H156: 483 | I156: 2016-08-08 | J156: 3.226668885 | K156: 483 | L156: 2016-08-08 | M156: 3.677305324 | N156: 537 | O156: 2016-10-18 | P156: 3.244732113 | Q156: 663 | R156: 2017-02-21 | S156: 4.358321963 | T156: 483 | U156: 2016-08-08 | V156: 3.648257903 | W156: 483 | X156: 2016-08-08 | Y156: 3.448577371 | AB156: 2017-06-01
B157: 486 | C157: 2016-08-09 | D157: 3.074001664 | E157: 486 | F157: 2016-08-09 | G157: 3.131396007 | H157: 486 | I157: 2016-08-09 | J157: 3.186276206 | K157: 486 | L157: 2016-08-09 | M157: 3.677305324 | N157: 541 | O157: 2016-10-19 | P157: 3.264257903 | Q157: 667 | R157: 2017-02-22 | S157: 4.383445923 | T157: 486 | U157: 2016-08-09 | V157: 3.613549085 | W157: 486 | X157: 2016-08-09 | Y157: 3.38102995 | AB157: 2017-05-31
B158: 490 | C158: 2016-08-10 | D158: 3.050530782 | E158: 490 | F158: 2016-08-10 | G158: 3.099156406 | H158: 490 | I158: 2016-08-10 | J158: 3.17281198 | K158: 490 | L158: 2016-08-10 | M158: 3.677305324 | N158: 544 | O158: 2016-10-20 | P158: 3.279878536 | Q158: 672 | R158: 2017-02-23 | S158: 4.425963394 | T158: 490 | U158: 2016-08-10 | V158: 3.603136439 | W158: 490 | X158: 2016-08-10 | Y158: 3.345269551 | AB158: 2017-05-30
B159: 493 | C159: 2016-08-11 | D159: 3.038795341 | E159: 493 | F159: 2016-08-11 | G159: 3.062886855 | H159: 493 | I159: 2016-08-11 | J159: 3.169445923 | K159: 493 | L159: 2016-08-11 | M159: 3.662705491 | N159: 548 | O159: 2016-10-21 | P159: 3.299404326 | Q159: 676 | R159: 2017-02-24 | S159: 4.398906822 | T159: 493 | U159: 2016-08-11 | V159: 3.606607321 | W159: 493 | X159: 2016-08-11 | Y159: 3.341296173 | AB159: 2017-05-26
B160: 496 | C160: 2016-08-12 | D160: 3.058354409 | E160: 496 | F160: 2016-08-12 | G160: 3.058856905 | H160: 496 | I160: 2016-08-12 | J160: 3.196374376 | K160: 496 | L160: 2016-08-12 | M160: 3.646019967 | N160: 552 | O160: 2016-10-24 | P160: 3.330645591 | Q160: 681 | R160: 2017-02-27 | S160: 4.402772047 | T160: 496 | U160: 2016-08-12 | V160: 3.637845258 | W160: 496 | X160: 2016-08-12 | Y160: 3.369109817 | AB160: 2017-05-25
B161: 500 | C161: 2016-08-15 | D161: 3.02119218 | E161: 500 | F161: 2016-08-15 | G161: 3.012512479 | H161: 500 | I161: 2016-08-15 | J161: 3.145883527 | K161: 500 | L161: 2016-08-15 | M161: 3.562592346 | N161: 555 | O161: 2016-10-25 | P161: 3.361886855 | Q161: 685 | R161: 2017-02-28 | S161: 4.441424293 | T161: 500 | U161: 2016-08-15 | V161: 3.547602329 | W161: 500 | X161: 2016-08-15 | Y161: 3.210174709 | AB161: 2017-05-24
B162: 503 | C162: 2016-08-16 | D162: 3.02119218 | E162: 503 | F162: 2016-08-16 | G162: 3.012512479 | H162: 503 | I162: 2016-08-16 | J162: 3.149249584 | K162: 503 | L162: 2016-08-16 | M162: 3.550078203 | N162: 559 | O162: 2016-10-26 | P162: 3.229111481 | Q162: 690 | R162: 2017-03-01 | S162: 4.503267887 | T162: 503 | U162: 2016-08-16 | V162: 3.582311148 | W162: 503 | X162: 2016-08-16 | Y162: 3.315469218 | AB162: 2017-05-23
B163: 506 | C163: 2016-08-17 | D163: 3.02119218 | E163: 506 | F163: 2016-08-17 | G163: 3.012512479 | H163: 506 | I163: 2016-08-17 | J163: 3.152615641 | K163: 506 | L163: 2016-08-17 | M163: 3.545906822 | N163: 563 | O163: 2016-10-27 | P163: 3.236921797 | Q163: 694 | R163: 2017-03-02 | S163: 4.480076539 | T163: 506 | U163: 2016-08-17 | V163: 3.596194676 | W163: 506 | X163: 2016-08-17 | Y163: 3.315469218 | AB163: 2017-05-22
B164: 509 | C164: 2016-08-18 | D164: 3.030971714 | E164: 509 | F164: 2016-08-18 | G164: 3.022587354 | H164: 509 | I164: 2016-08-18 | J164: 3.179544093 | K164: 509 | L164: 2016-08-18 | M164: 3.575106489 | N164: 566 | O164: 2016-10-28 | P164: 3.221301165 | Q164: 699 | R164: 2017-03-03 | S164: 4.441424293 | T164: 509 | U164: 2016-08-18 | V164: 3.655199667 | W164: 509 | X164: 2016-08-18 | Y164: 3.426723794 | AB164: 2017-05-19
B165: 513 | C165: 2016-08-19 | D165: 3.0270599 | E165: 513 | F165: 2016-08-19 | G165: 3.018557404 | H165: 513 | I165: 2016-08-19 | J165: 3.176178037 | K165: 513 | L165: 2016-08-19 | M165: 3.570935108 | N165: 570 | O165: 2016-10-31 | P165: 3.151008319 | Q165: 703 | R165: 2017-03-06 | S165: 4.449154742 | T165: 513 | U165: 2016-08-19 | V165: 3.665612313 | W165: 513 | X165: 2016-08-19 | Y165: 3.426723794 | AB165: 2017-05-18
B166: 516 | C166: 2016-08-22 | D166: 3.023148087 | E166: 516 | F166: 2016-08-22 | G166: 3.014527454 | H166: 516 | I166: 2016-08-22 | J166: 3.17281198 | K166: 516 | L166: 2016-08-22 | M166: 3.566763727 | N166: 574 | O166: 2016-11-01 | P166: 3.119767055 | Q166: 708 | R166: 2017-03-07 | S166: 4.464615641 | T166: 516 | U166: 2016-08-22 | V166: 3.662141431 | W166: 516 | X166: 2016-08-22 | Y166: 3.422750416 | AB166: 2017-05-17
B167: 519 | C167: 2016-08-23 | D167: 3.07008985 | E167: 519 | F167: 2016-08-23 | G167: 3.058856905 | H167: 519 | I167: 2016-08-23 | J167: 3.230034942 | K167: 519 | L167: 2016-08-23 | M167: 3.620991681 | N167: 577 | O167: 2016-11-02 | P167: 3.111956739 | Q167: 712 | R167: 2017-03-08 | S167: 4.476211314 | T167: 519 | U167: 2016-08-23 | V167: 3.693379368 | W167: 519 | X167: 2016-08-23 | Y167: 3.422750416 | AB167: 2017-05-16
B168: 523 | C168: 2016-08-24 | D168: 3.085737105 | E168: 523 | F168: 2016-08-24 | G168: 3.079006656 | H168: 523 | I168: 2016-08-24 | J168: 3.243499168 | K168: 523 | L168: 2016-08-24 | M168: 3.633505824 | N168: 581 | O168: 2016-11-03 | P168: 3.119767055 | Q168: 717 | R168: 2017-03-09 | S168: 4.441424293 | T168: 523 | U168: 2016-08-24 | V168: 3.698585691 | W168: 523 | X168: 2016-08-24 | Y168: 3.422750416 | AB168: 2017-05-15
B169: 526 | C169: 2016-08-25 | D169: 3.089648918 | E169: 526 | F169: 2016-08-25 | G169: 3.083036606 | H169: 526 | I169: 2016-08-25 | J169: 3.246865225 | K169: 526 | L169: 2016-08-25 | M169: 3.637677205 | N169: 585 | O169: 2016-11-04 | P169: 3.186154742 | Q169: 722 | R169: 2017-03-10 | S169: 4.425963394 | T169: 526 | U169: 2016-08-25 | V169: 3.698585691 | W169: 526 | X169: 2016-08-25 | Y169: 3.422750416 | AB169: 2017-05-12
B170: 529 | C170: 2016-08-26 | D170: 3.1131198 | E170: 529 | F170: 2016-08-26 | G170: 3.103186356 | H170: 529 | I170: 2016-08-26 | J170: 3.256963394 | K170: 529 | L170: 2016-08-26 | M170: 3.646019967 | N170: 588 | O170: 2016-11-07 | P170: 3.217396007 | Q170: 726 | R170: 2017-03-13 | S170: 4.460750416 | T170: 529 | U170: 2016-08-26 | V170: 3.707262895 | W170: 529 | X170: 2016-08-26 | Y170: 3.422750416 | AB170: 2017-05-11
B171: 533 | C171: 2016-08-29 | D171: 3.091604825 | E171: 533 | F171: 2016-08-29 | G171: 3.083036606 | H171: 533 | I171: 2016-08-29 | J171: 3.240133111 | K171: 533 | L171: 2016-08-29 | M171: 3.629334443 | N171: 592 | O171: 2016-11-08 | P171: 3.199822795 | Q171: 731 | R171: 2017-03-15 | S171: 4.482009151 | T171: 533 | U171: 2016-08-29 | V171: 3.695114809 | W171: 533 | X171: 2016-08-29 | Y171: 3.422750416 | AB171: 2017-05-10
B172: 536 | C172: 2016-08-30 | D172: 3.091604825 | E172: 536 | F172: 2016-08-30 | G172: 3.087066556 | H172: 536 | I172: 2016-08-30 | J172: 3.24181614 | K172: 536 | L172: 2016-08-30 | M172: 3.633505824 | N172: 596 | O172: 2016-11-09 | P172: 3.199822795 | Q172: 735 | R172: 2017-03-15 | S172: 4.482009151 | T172: 536 | U172: 2016-08-30 | V172: 3.695114809 | W172: 536 | X172: 2016-08-30 | Y172: 3.418777038 | AB172: 2017-05-09
B173: 539 | C173: 2016-08-31 | D173: 3.089648918 | E173: 539 | F173: 2016-08-31 | G173: 3.083036606 | H173: 539 | I173: 2016-08-31 | J173: 3.24181614 | K173: 539 | L173: 2016-08-31 | M173: 3.629334443 | N173: 600 | O173: 2016-11-14 | P173: 3.158818636 | Q173: 740 | R173: 2017-03-17 | S173: 4.482009151 | T173: 539 | U173: 2016-08-31 | V173: 3.693379368 | W173: 539 | X173: 2016-08-31 | Y173: 3.418777038 | AB173: 2017-05-08
B174: 543 | C174: 2016-09-01 | D174: 3.085737105 | E174: 543 | F174: 2016-09-01 | G174: 3.079006656 | H174: 543 | I174: 2016-09-01 | J174: 3.236767055 | K174: 543 | L174: 2016-09-01 | M174: 3.620991681 | N174: 603 | O174: 2016-11-14 | P174: 3.162723794 | Q174: 744 | R174: 2017-03-17 | S174: 4.482009151 | T174: 543 | U174: 2016-09-01 | V174: 3.686437604 | W174: 543 | X174: 2016-09-01 | Y174: 3.418777038 | AB174: 2017-05-05
B175: 546 | C175: 2016-09-02 | D175: 3.074001664 | E175: 546 | F175: 2016-09-02 | G175: 3.066916805 | H175: 546 | I175: 2016-09-02 | J175: 3.226668885 | K175: 546 | L175: 2016-09-02 | M175: 3.608477537 | N175: 607 | O175: 2016-11-16 | P175: 3.221301165 | Q175: 749 | R175: 2017-03-21 | S175: 4.464615641 | T175: 546 | U175: 2016-09-02 | V175: 3.689908486 | W175: 546 | X175: 2016-09-02 | Y175: 3.418777038 | AB175: 2017-05-04
B176: 549 | C176: 2016-09-06 | D176: 3.07008985 | E176: 549 | F176: 2016-09-06 | G176: 3.062886855 | H176: 549 | I176: 2016-09-06 | J176: 3.219936772 | K176: 549 | L176: 2016-09-06 | M176: 3.600134775 | N176: 611 | O176: 2016-11-17 | P176: 3.244732113 | Q176: 753 | R176: 2017-03-22 | S176: 4.449154742 | T176: 549 | U176: 2016-09-06 | V176: 3.684702163 | W176: 549 | X176: 2016-09-06 | Y176: 3.418777038 | AB176: 2017-05-03
B177: 552 | C177: 2016-09-07 | D177: 3.097472546 | E177: 552 | F177: 2016-09-07 | G177: 3.091096506 | H177: 552 | I177: 2016-09-07 | J177: 3.236767055 | K177: 552 | L177: 2016-09-07 | M177: 3.6168203 | N177: 614 | O177: 2016-11-18 | P177: 3.299404326 | Q177: 758 | R177: 2017-03-23 | S177: 4.402772047 | T177: 552 | U177: 2016-09-07 | V177: 3.684702163 | W177: 552 | X177: 2016-09-07 | Y177: 3.418777038 | AB177: 2017-05-02
B178: 556 | C178: 2016-09-08 | D178: 3.158105657 | E178: 556 | F178: 2016-09-08 | G178: 3.155575707 | H178: 556 | I178: 2016-09-08 | J178: 3.273793677 | K178: 556 | L178: 2016-09-08 | M178: 3.654362729 | N178: 618 | O178: 2016-11-21 | P178: 3.338455907 | Q178: 762 | R178: 2017-03-24 | S178: 4.424030782 | T178: 556 | U178: 2016-09-08 | V178: 3.69685025 | W178: 556 | X178: 2016-09-08 | Y178: 3.414803661 | AB178: 2017-05-01
B179: 559 | C179: 2016-09-09 | D179: 3.158105657 | E179: 559 | F179: 2016-09-09 | G179: 3.151545757 | H179: 559 | I179: 2016-09-09 | J179: 3.270427621 | K179: 559 | L179: 2016-09-09 | M179: 3.408251248 | N179: 622 | O179: 2016-11-22 | P179: 3.299404326 | Q179: 767 | R179: 2017-03-27 | S179: 4.424030782 | T179: 559 | U179: 2016-09-09 | V179: 3.689908486 | W179: 559 | X179: 2016-09-09 | Y179: 3.414803661 | AB179: 2017-04-28
B180: 562 | C180: 2016-09-12 | D180: 3.191356073 | E180: 562 | F180: 2016-09-12 | G180: 3.183785358 | H180: 562 | I180: 2016-09-12 | J180: 3.305771215 | K180: 562 | L180: 2016-09-12 | M180: 3.566763727 | N180: 625 | O180: 2016-11-23 | P180: 3.643058236 | Q180: 771 | R180: 2017-03-28 | S180: 4.429828619 | T180: 562 | U180: 2016-09-12 | V180: 3.719410982 | W180: 562 | X180: 2016-09-12 | Y180: 3.414803661 | AB180: 2017-04-27
B181: 566 | C181: 2016-09-13 | D181: 3.18744426 | E181: 566 | F181: 2016-09-13 | G181: 3.179755408 | H181: 566 | I181: 2016-09-13 | J181: 3.305771215 | K181: 566 | L181: 2016-09-13 | M181: 3.520878536 | N181: 629 | O181: 2016-11-25 | P181: 3.65477371 | Q181: 776 | R181: 2017-03-29 | S181: 4.453019967 | T181: 566 | U181: 2016-09-13 | V181: 3.719410982 | W181: 566 | X181: 2016-09-13 | Y181: 3.414803661 | AB181: 2017-04-26
B182: 569 | C182: 2016-09-14 | D182: 3.207003328 | E182: 569 | F182: 2016-09-14 | G182: 3.401402662 | H182: 569 | I182: 2016-09-14 | J182: 3.317552413 | K182: 569 | L182: 2016-09-14 | M182: 3.437450915 | N182: 633 | O182: 2016-11-28 | P182: 3.568860233 | Q182: 781 | R182: 2017-03-30 | S182: 4.44722213 | T182: 569 | U182: 2016-09-14 | V182: 3.728088186 | W182: 569 | X182: 2016-09-14 | Y182: 3.410830283 | AB182: 2017-04-25
B183: 572 | C183: 2016-09-15 | D183: 3.132678869 | E183: 572 | F183: 2016-09-15 | G183: 2.986317804 | H183: 572 | I183: 2016-09-15 | J183: 3.233400998 | K183: 572 | L183: 2016-09-15 | M183: 3.362366057 | N183: 636 | O183: 2016-11-29 | P183: 3.596196339 | Q183: 785 | R183: 2017-03-31 | S183: 4.44722213 | T183: 572 | U183: 2016-09-15 | V183: 3.64131614 | W183: 572 | X183: 2016-09-15 | Y183: 3.410830283 | AB183: 2017-04-24
B184: 576 | C184: 2016-09-16 | D184: 3.152237937 | E184: 576 | F184: 2016-09-16 | G184: 2.978257903 | H184: 576 | I184: 2016-09-16 | J184: 3.250231281 | K184: 576 | L184: 2016-09-16 | M184: 3.316480865 | N184: 640 | O184: 2016-11-30 | P184: 3.709445923 | Q184: 790 | R184: 2017-04-03 | S184: 4.491672213 | T184: 576 | U184: 2016-09-16 | V184: 3.627432612 | W184: 576 | X184: 2016-09-16 | Y184: 3.396923461 | AB184: 2017-04-21
B185: 579 | C185: 2016-09-19 | D185: 3.120943428 | E185: 579 | F185: 2016-09-19 | G185: 2.972212978 | H185: 579 | I185: 2016-09-19 | J185: 3.216570715 | K185: 579 | L185: 2016-09-19 | M185: 3.362366057 | N185: 644 | O185: 2016-12-01 | P185: 3.713351082 | Q185: 794 | R185: 2017-04-04 | S185: 4.480076539 | T185: 579 | U185: 2016-09-19 | V185: 3.596194676 | W185: 579 | X185: 2016-09-19 | Y185: 3.392950083 | AB185: 2017-04-20
B186: 582 | C186: 2016-09-20 | D186: 3.109207987 | E186: 582 | F186: 2016-09-20 | G186: 2.972212978 | H186: 582 | I186: 2016-09-20 | J186: 3.209838602 | K186: 582 | L186: 2016-09-20 | M186: 3.303966722 | N186: 647 | O186: 2016-12-02 | P186: 3.760212978 | Q186: 799 | R186: 2017-04-05 | S186: 4.462683028 | T186: 582 | U186: 2016-09-20 | V186: 3.582311148 | W186: 582 | X186: 2016-09-20 | Y186: 3.357189684 | AB186: 2017-04-19
B187: 586 | C187: 2016-09-22 | D187: 3.093560732 | E187: 586 | F187: 2016-09-22 | G187: 2.970198003 | H187: 586 | I187: 2016-09-22 | J187: 3.196374376 | K187: 586 | L187: 2016-09-22 | M187: 3.341509151 | N187: 651 | O187: 2016-12-05 | P187: 3.764118136 | Q187: 803 | R187: 2017-04-06 | S187: 4.462683028 | T187: 586 | U187: 2016-09-22 | V187: 3.575369384 | W187: 586 | X187: 2016-09-22 | Y187: 3.309509151 | AB187: 2017-04-18
B188: 589 | C188: 2016-09-22 | D188: 3.050530782 | E188: 589 | F188: 2016-09-22 | G188: 2.956093178 | H188: 589 | I188: 2016-09-22 | J188: 3.152615641 | K188: 589 | L188: 2016-09-22 | M188: 3.185082363 | N188: 655 | O188: 2016-12-06 | P188: 3.818790349 | Q188: 808 | R188: 2017-04-07 | S188: 4.476211314 | T188: 589 | U188: 2016-09-22 | V188: 3.53024792 | W188: 589 | X188: 2016-09-22 | Y188: 3.234014975 | AB188: 2017-04-17
B189: 592 | C189: 2016-09-23 | D189: 3.042707155 | E189: 592 | F189: 2016-09-23 | G189: 2.956093178 | H189: 592 | I189: 2016-09-23 | J189: 3.142517471 | K189: 592 | L189: 2016-09-23 | M189: 3.185082363 | N189: 658 | O189: 2016-12-07 | P189: 3.842221298 | Q189: 812 | R189: 2017-04-10 | S189: 4.480076539 | T189: 592 | U189: 2016-09-23 | V189: 3.514628952 | W189: 592 | X189: 2016-09-23 | Y189: 3.214148087 | AB189: 2017-04-13
B190: 595 | C190: 2016-09-26 | D190: 3.095516639 | E190: 595 | F190: 2016-09-26 | G190: 2.954078203 | H190: 595 | I190: 2016-09-26 | J190: 3.176178037 | K190: 595 | L190: 2016-09-26 | M190: 3.099569052 | N190: 662 | O190: 2016-12-08 | P190: 3.881272879 | Q190: 817 | R190: 2017-04-11 | S190: 4.483941764 | T190: 595 | U190: 2016-09-26 | V190: 3.514628952 | W190: 595 | X190: 2016-09-26 | Y190: 3.20818802 | AB190: 2017-04-12
B191: 599 | C191: 2016-09-28 | D191: 3.095516639 | E191: 599 | F191: 2016-09-28 | G191: 2.950048253 | H191: 599 | I191: 2016-09-28 | J191: 3.169445923 | K191: 599 | L191: 2016-09-28 | M191: 3.095397671 | N191: 666 | O191: 2016-12-09 | P191: 3.873462562 | Q191: 821 | R191: 2017-04-12 | S191: 4.464615641 | T191: 599 | U191: 2016-09-28 | V191: 3.514628952 | W191: 599 | X191: 2016-09-28 | Y191: 3.20818802 | AB191: 2017-04-11
B192: 602 | C192: 2016-09-28 | D192: 3.066178037 | E192: 602 | F192: 2016-09-28 | G192: 2.946018303 | H192: 602 | I192: 2016-09-28 | J192: 3.152615641 | K192: 602 | L192: 2016-09-28 | M192: 3.087054908 | N192: 669 | O192: 2016-12-12 | P192: 4.029668885 | Q192: 826 | R192: 2017-04-13 | S192: 4.482009151 | T192: 602 | U192: 2016-09-28 | V192: 3.512893511 | W192: 602 | X192: 2016-09-28 | Y192: 3.206201331 | AB192: 2017-04-10
B193: 605 | C193: 2016-09-29 | D193: 3.095516639 | E193: 605 | F193: 2016-09-29 | G193: 2.921838602 | H193: 605 | I193: 2016-09-29 | J193: 3.166079867 | K193: 605 | L193: 2016-09-29 | M193: 3.070369384 | N193: 673 | O193: 2016-12-13 | P193: 4.051147255 | Q193: 830 | R193: 2017-04-17 | S193: 4.482009151 | T193: 605 | U193: 2016-09-29 | V193: 3.502480865 | W193: 605 | X193: 2016-09-29 | Y193: 3.198254576 | AB193: 2017-04-07
B194: 609 | C194: 2016-10-03 | D194: 3.095516639 | E194: 609 | F194: 2016-10-03 | G194: 2.907733777 | H194: 609 | I194: 2016-10-03 | J194: 3.155981697 | K194: 609 | L194: 2016-10-03 | M194: 3.059940932 | N194: 677 | O194: 2016-12-14 | P194: 4.051147255 | Q194: 835 | R194: 2017-04-18 | S194: 4.534189684 | T194: 609 | U194: 2016-10-03 | V194: 3.47471381 | W194: 609 | X194: 2016-10-03 | Y194: 3.178387687 | AB194: 2017-04-06
B195: 612 | C195: 2016-10-04 | D195: 3.050530782 | E195: 612 | F195: 2016-10-04 | G195: 2.907733777 | H195: 612 | I195: 2016-10-04 | J195: 3.098758735 | K195: 612 | L195: 2016-10-04 | M195: 3.059940932 | N195: 680 | O195: 2016-12-15 | P195: 4.119487521 | Q195: 840 | R195: 2017-04-19 | S195: 4.584437604 | T195: 612 | U195: 2016-10-04 | V195: 3.405296173 | W195: 612 | X195: 2016-10-04 | Y195: 3.106866889 | AB195: 2017-04-05
B196: 615 | C196: 2016-10-04 | D196: 3.128767055 | E196: 615 | F196: 2016-10-04 | G196: 2.933928453 | H196: 615 | I196: 2016-10-04 | J196: 3.149249584 | K196: 615 | L196: 2016-10-04 | M196: 3.057855241 | N196: 684 | O196: 2016-12-16 | P196: 4.244452579 | Q196: 844 | R196: 2017-04-20 | S196: 4.67333777 | T196: 615 | U196: 2016-10-04 | V196: 3.433063228 | W196: 615 | X196: 2016-10-04 | Y196: 3.134680532 | AB196: 2017-04-04
B197: 619 | C197: 2016-10-06 | D197: 3.18744426 | E197: 619 | F197: 2016-10-06 | G197: 2.962138103 | H197: 619 | I197: 2016-10-06 | J197: 3.219936772 | K197: 619 | L197: 2016-10-06 | M197: 3.05368386 | N197: 688 | O197: 2016-12-19 | P197: 4.142918469 | Q197: 849 | R197: 2017-04-21 | S197: 4.534189684 | T197: 619 | U197: 2016-10-06 | V197: 3.512893511 | W197: 619 | X197: 2016-10-06 | Y197: 3.218121464 | AB197: 2017-04-03
B198: 622 | C198: 2016-10-07 | D198: 3.07008985 | E198: 622 | F198: 2016-10-07 | G198: 2.929898502 | H198: 622 | I198: 2016-10-07 | J198: 3.105490849 | K198: 622 | L198: 2016-10-07 | M198: 3.049512479 | N198: 691 | O198: 2016-12-20 | P198: 4.115582363 | Q198: 853 | R198: 2017-04-24 | S198: 4.667539933 | T198: 622 | U198: 2016-10-07 | V198: 3.394883527 | W198: 622 | X198: 2016-10-07 | Y198: 3.098920133 | AB198: 2017-03-31
B199: 625 | C199: 2016-10-11 | D199: 3.050530782 | E199: 625 | F199: 2016-10-11 | G199: 2.913778702 | H199: 625 | I199: 2016-10-11 | J199: 3.108856905 | K199: 625 | L199: 2016-10-11 | M199: 3.045341098 | N199: 695 | O199: 2016-12-21 | P199: 4.154633943 | Q199: 858 | R199: 2017-04-25 | S199: 4.667539933 | T199: 625 | U199: 2016-10-11 | V199: 3.401825291 | W199: 625 | X199: 2016-10-11 | Y199: 3.106866889 | AB199: 2017-03-30
B200: 629 | C200: 2016-10-12 | D200: 3.042707155 | E200: 629 | F200: 2016-10-12 | G200: 2.905718802 | H200: 629 | I200: 2016-10-12 | J200: 3.102124792 | K200: 629 | L200: 2016-10-12 | M200: 3.05159817 | N200: 699 | O200: 2016-12-22 | P200: 4.150728785 | Q200: 862 | R200: 2017-04-26 | S200: 4.764170549 | T200: 629 | U200: 2016-10-12 | V200: 3.398354409 | W200: 629 | X200: 2016-10-12 | Y200: 3.102893511 | AB200: 2017-03-29
B201: 632 | C201: 2016-10-13 | D201: 3.074001664 | E201: 632 | F201: 2016-10-13 | G201: 2.933928453 | H201: 632 | I201: 2016-10-13 | J201: 3.108856905 | K201: 632 | L201: 2016-10-13 | M201: 3.05159817 | N201: 703 | O201: 2016-12-23 | P201: 4.205400998 | Q201: 867 | R201: 2017-04-28 | S201: 4.764170549 | T201: 632 | U201: 2016-10-13 | V201: 3.381 | W201: 632 | X201: 2016-10-13 | Y201: 3.087 | AB201: 2017-03-28
B202: 635 | C202: 2016-10-14 | D202: 3.105296173 | E202: 635 | F202: 2016-10-14 | G202: 2.966168053 | H202: 635 | I202: 2016-10-14 | J202: 3.152615641 | K202: 635 | L202: 2016-10-14 | M202: 3.1329401 | N202: 706 | O202: 2016-12-27 | P202: 4.174159734 | Q202: 871 | R202: 2017-04-28 | S202: 4.878194676 | T202: 635 | U202: 2016-10-14 | V202: 3.43653411 | W202: 635 | X202: 2016-10-14 | Y202: 3.142627288 | AB202: 2017-03-27
... 307 more rows

Sheet config
B2: TAB: CONFIGURATION FILE
E3: =365*5/7 -> 260.7142857
B5: Test connection | C5: =_xll.AC.test.connection() -> host: CA2013466W3; user: Konstantin.Rybakov; key: null
B9: Key | C9: Description
B10: polylines | C10: Key for svg graph data
B11: xgrid | C11: Key for svg grid data
B12: height | C12: Key for svg maximum integer y-coordinate (minimum y-coordinate is zero)
B13: y | C13: Key for svg minimum integer coordinate
B15: # | C15: Cell address | D15: Row count | E15: Col count | F15: Comment
B16: 1 | C16: =addressFla(OFFSET(out!$D$10, 0, 3*(B16-1))) -> 'out'!$D$10 | D16: =OFFSET(out!$C$6, 0, 3*(B16-1)) -> 488 | E16: 1
B17: =B16+1 -> 2 | C17: =addressFla(OFFSET(out!$D$10, 0, 3*(B17-1))) -> 'out'!$G$10 | D17: =OFFSET(out!$C$6, 0, 3*(B17-1)) -> 488 | E17: 1
B18: =B17+1 -> 3 | C18: =addressFla(OFFSET(out!$D$10, 0, 3*(B18-1))) -> 'out'!$J$10 | D18: =OFFSET(out!$C$6, 0, 3*(B18-1)) -> 488 | E18: 1
B19: 4 | C19: =addressFla(OFFSET(out!$D$10, 0, 3*(B19-1))) -> 'out'!$M$10 | D19: =OFFSET(out!$C$6, 0, 3*(B19-1)) -> 488 | E19: 1
B20: 5 | C20: =addressFla(OFFSET(out!$D$10, 0, 3*(B20-1))) -> 'out'!$P$10 | D20: =OFFSET(out!$C$6, 0, 3*(B20-1)) -> 439 | E20: 1
B21: 6 | C21: =addressFla(OFFSET(out!$D$10, 0, 3*(B21-1))) -> 'out'!$S$10 | D21: =OFFSET(out!$C$6, 0, 3*(B21-1)) -> 356 | E21: 1
B22: 7 | C22: =addressFla(OFFSET(out!$D$10, 0, 3*(B22-1))) -> 'out'!$V$10 | D22: =OFFSET(out!$C$6, 0, 3*(B22-1)) -> 488 | E22: 1
B23: =B22+1 -> 8 | C23: =addressFla(OFFSET(out!$D$10, 0, 3*(B23-1))) -> 'out'!$Y$10 | D23: =OFFSET(out!$C$6, 0, 3*(B23-1)) -> 488 | E23: 1
B24: =B16 -> 1 | C24: =addressFla(OFFSET(out!$B$10, 0, 3*(B16-1))) -> 'out'!$B$10 | D24: =D16 -> 488 | E24: =E16 -> 1
B25: =B17 -> 2 | C25: =addressFla(OFFSET(out!$B$10, 0, 3*(B17-1))) -> 'out'!$E$10 | D25: =D17 -> 488 | E25: 1
B26: 3 | C26: =addressFla(OFFSET(out!$B$10, 0, 3*(B18-1))) -> 'out'!$H$10 | D26: =D18 -> 488 | E26: 1
B27: 4 | C27: =addressFla(OFFSET(out!$B$10, 0, 3*(B19-1))) -> 'out'!$K$10 | D27: =D19 -> 488 | E27: 1
B28: 5 | C28: =addressFla(OFFSET(out!$B$10, 0, 3*(B20-1))) -> 'out'!$N$10 | D28: =D20 -> 439 | E28: 1
B29: 6 | C29: =addressFla(OFFSET(out!$B$10, 0, 3*(B21-1))) -> 'out'!$Q$10 | D29: =D21 -> 356 | E29: 1
B30: 7 | C30: =addressFla(OFFSET(out!$B$10, 0, 3*(B22-1))) -> 'out'!$T$10 | D30: =D22 -> 488 | E30: 1
B31: 8 | C31: =addressFla(OFFSET(out!$B$10, 0, 3*(B23-1))) -> 'out'!$W$10 | D31: =D23 -> 488 | E31: 1
